Workbook

Sheet Summary
C2: Revenue Growth
C3: COGS Percent
G4: Period | H4: Growth
G5: 2020-2024 | H5: =Scenarios!F28 -> 0
C6: Explict Year | E6: =Valuation!E3 -> 2026 | G6: 2025-2029 | H6: =Scenarios!G28 -> 0
C7: Cap Exp Factor | E7: ='Amazon Financial Model'!F236 -> 1 | G7: 2030-2034 | H7: =Scenarios!H28 -> 0
C8: Growth in Constant Case | E8: =Scenarios!$F$24 -> 0.14 | G8: 2030-Term | H8: =Scenarios!I28 -> 0
C9: COGS in Constant Case | E9: =Scenarios!$F$60 -> 0.5203171457
G10: Period | H10: Margin
C11: WACC | E11: =Scenarios!F7 -> 0.09 | G11: 2020-2024 | H11: =1-Scenarios!F64 -> 0.4796828543
C12: Terminal Growth | E12: =Scenarios!F8 -> 0.04 | G12: 2025-2029 | H12: =1-Scenarios!G64 -> 0.4796828543
C13: Terminal ROIC | E13: =Scenarios!F9 -> 0.18 | G13: 2030-2034 | H13: =1-Scenarios!H64 -> 0.4796828543
C14: Terminal EV/EBITDA | E14: =Scenarios!F11 -> 12 | G14: 2030-Term | H14: =1-Scenarios!I64 -> 0.4796828543
E16: Growth | F16: EV/EBITDA | G16: Value Driver | H16: Value Driver
G17: Incremental | H17: Direct
C18: Value per Share | E18: =Valuation!E103 ->  | F18: =Valuation!E121 ->  | G18: =Valuation!E139 ->  | H18: =Valuation!E157 -> 
C19: Current Market | E19: =Valuation!E93 -> 2410.219971 | F19: =E19 -> 2410.219971 | G19: =F19 -> 2410.219971 | H19: 2410.219971
C21: P/E | E21: =Valuation!E106 ->  | F21: =Valuation!E124 ->  | G21: =Valuation!E142 ->  | H21: =Valuation!E160 -> 
C22: EV/EBITDA | E22: =Valuation!E109 -> 0 | F22: =Valuation!E127 -> 0 | G22: =Valuation!E145 -> 0 | H22: =Valuation!E163 -> 0
C23: Price/Book | E23: =Valuation!E112 -> 0 | F23: =Valuation!E130 -> 0 | G23: =Valuation!E148 -> 0 | H23: =Valuation!E166 -> 0
E31: 2

Sheet Control
C3: Scenario | D3: 1
D5: Revenue Growth | E5: Margin | F5: Cap Exp to Depreciation | G5: COGS Constant | H5: WACC | I5: Growth | J5: ROIC
C6: Base Case | D6: 1 | E6: 4 | F6: 1 | G6: 0.525 | H6: 0.065 | I6: 0.04 | J6: 0.18
C7: Low Case | D7: 3 | E7: 4 | F7: 1 | G7: 0.54 | H7: 0.065 | I7: 0.04 | J7: 0.18
C8: High Case | D8: 2 | E8: 4 | F8: 1 | G8: 0.5 | H8: 0.065 | I8: 0.04 | J8: 0.18
C9: Revenue Sensitivity | D9: 3 | E9: 4 | F9: 1 | G9: 0.525 | H9: 0.065 | I9: 0.04 | J9: 0.18
C10: Low Valuation | D10: 1 | E10: 4 | F10: 1 | G10: 0.525 | H10: 0.08 | I10: 0.02 | J10: 0.15
C11: High Valuation | D11: 1 | E11: 4 | F11: 1 | G11: 0.525 | H11: 0.06 | I11: 0.05 | J11: 0.2
C13: =INDEX(C6:C11,$D$3) -> Base Case | D13: =INDEX(D6:D11,$D$3) -> 1 | E13: =INDEX(E6:E11,$D$3) -> 4 | F13: =INDEX(F6:F11,$D$3) -> 1 | G13: =INDEX(G6:G11,$D$3) -> 0.525 | H13: =INDEX(H6:H11,$D$3) -> 0.065 | I13: =INDEX(I6:I11,$D$3) -> 0.04 | J13: =INDEX(J6:J11,$D$3) -> 0.18 | K13: Index
C15: Base Case | D15: 1 | E15: 4 | F15: 100 | G15: 525 | H15: 65 | I15: 40 | J15: 18 | K15: Applied

Sheet Scenarios
B2: Valuation Assumptions
C3: Terminal Period | E3: Years | F3: 6 | H3: 12
C4: Valuation Year | E4: Years | F4: 2020
C5: Terminal Year | E5: Years | F5: =F3+F4 -> 2026
C7: WACC | E7: % | F7: =H7/1000 -> 0.09 | H7: 90
C8: Terminal Growth | E8: % | F8: =H8/1000 -> 0.04 | H8: =Control!I15 -> 40
C9: Terminal ROIC | E9: % | F9: =H9/100 -> 0.18 | H9: 18
C11: Terminal EV/EBITDA Ratio | E11: x | F11: =H11 -> 12 | H11: 12
C13: Apply Normalised Terminal Value | E13: Flag | F13: TRUE
C14: Stable Capital Expenditures to Depreciation | E14: % | F14: =LOOKUP(F8,'Cap Exp and Depreciation'!35:35,'Cap Exp and Depreciation'!36:36) -> FALSE
C15: Working Capital to EBITDA Ratio | E15: % | F15: -1.5
C16: WC Change Factor | E16: Factor | F16: =F15*F8/(1+F8) -> -0.05769230769 | H16: =Equations!B13 -> WC Change Factor = [WC/EBITDA * Growth]/[1+Growth]
B18: Revenue Assumptions
C19: Revenue Scenario | E19: 1
E20: 2008 | F20: 2020 | G20: 2025 | H20: 2030 | I20: 2035
D21: Base Case | F21: 0.2 | G21: 0.15 | H21: 0.1 | I21: 0.065
D22: High Case | F22: 0.3 | G22: 0.25 | H22: 0.2 | I22: 0.15
D23: Low Case | F23: 0.12 | G23: 0.1 | H23: 0.07 | I23: 0.04
D24: Constant Case | F24: =E30/100 -> 0.14 | G24: =F24 -> 0.14 | H24: =G24 -> 0.14 | I24: 0.14
D25: Low Terminal | F25: 0.25 | G25: 0.2 | H25: 0.15 | I25: 0.04
D26: High Terminal | F26: 0.25 | G26: 0.2 | H26: 0.15 | I26: 0.09
D30: Constant Case | E30: 14
C32: Cap Exp to Depreciation
D33: Base Case | F33: =LOOKUP(F21,'Cap Exp and Depreciation'!$35:$35,'Cap Exp and Depreciation'!$36:$36) -> FALSE | G33: =LOOKUP(G21,'Cap Exp and Depreciation'!$35:$35,'Cap Exp and Depreciation'!$36:$36) -> FALSE | H33: =LOOKUP(H21,'Cap Exp and Depreciation'!$35:$35,'Cap Exp and Depreciation'!$36:$36) -> FALSE | I33: =LOOKUP(I21,'Cap Exp and Depreciation'!$35:$35,'Cap Exp and Depreciation'!$36:$36) -> FALSE
D34: High Case | F34: =LOOKUP(F22,'Cap Exp and Depreciation'!$35:$35,'Cap Exp and Depreciation'!$36:$36) -> FALSE | G34: =LOOKUP(G22,'Cap Exp and Depreciation'!$35:$35,'Cap Exp and Depreciation'!$36:$36) -> FALSE | H34: =LOOKUP(H22,'Cap Exp and Depreciation'!$35:$35,'Cap Exp and Depreciation'!$36:$36) -> FALSE | I34: =LOOKUP(I22,'Cap Exp and Depreciation'!$35:$35,'Cap Exp and Depreciation'!$36:$36) -> FALSE
D35: Low Case | F35: =LOOKUP(F23,'Cap Exp and Depreciation'!$35:$35,'Cap Exp and Depreciation'!$36:$36) -> FALSE | G35: =LOOKUP(G23,'Cap Exp and Depreciation'!$35:$35,'Cap Exp and Depreciation'!$36:$36) -> FALSE | H35: =LOOKUP(H23,'Cap Exp and Depreciation'!$35:$35,'Cap Exp and Depreciation'!$36:$36) -> FALSE | I35: =LOOKUP(I23,'Cap Exp and Depreciation'!$35:$35,'Cap Exp and Depreciation'!$36:$36) -> FALSE
D36: Constant Case | F36: =LOOKUP(F24,'Cap Exp and Depreciation'!$35:$35,'Cap Exp and Depreciation'!$36:$36) -> FALSE | G36: =LOOKUP(G24,'Cap Exp and Depreciation'!$35:$35,'Cap Exp and Depreciation'!$36:$36) -> FALSE | H36: =LOOKUP(H24,'Cap Exp and Depreciation'!$35:$35,'Cap Exp and Depreciation'!$36:$36) -> FALSE | I36: =LOOKUP(I24,'Cap Exp and Depreciation'!$35:$35,'Cap Exp and Depreciation'!$36:$36) -> FALSE
D37: Low Terminal | F37: =LOOKUP(F25,'Cap Exp and Depreciation'!$35:$35,'Cap Exp and Depreciation'!$36:$36) -> FALSE | G37: =LOOKUP(G25,'Cap Exp and Depreciation'!$35:$35,'Cap Exp and Depreciation'!$36:$36) -> FALSE | H37: =LOOKUP(H25,'Cap Exp and Depreciation'!$35:$35,'Cap Exp and Depreciation'!$36:$36) -> FALSE | I37: =LOOKUP(I25,'Cap Exp and Depreciation'!$35:$35,'Cap Exp and Depreciation'!$36:$36) -> FALSE
D38: High Terminal | F38: =LOOKUP(F26,'Cap Exp and Depreciation'!$35:$35,'Cap Exp and Depreciation'!$36:$36) -> FALSE | G38: =LOOKUP(G26,'Cap Exp and Depreciation'!$35:$35,'Cap Exp and Depreciation'!$36:$36) -> FALSE | H38: =LOOKUP(H26,'Cap Exp and Depreciation'!$35:$35,'Cap Exp and Depreciation'!$36:$36) -> FALSE | I38: =LOOKUP(I26,'Cap Exp and Depreciation'!$35:$35,'Cap Exp and Depreciation'!$36:$36) -> FALSE
D40: =INDEX(D33:D38,$E$19) -> Base Case | F40: =INDEX(F33:F38,$E$19) -> FALSE | G40: =INDEX(G33:G38,$E$19) -> FALSE | H40: =INDEX(H33:H38,$E$19) -> FALSE | I40: =INDEX(I33:I38,$E$19) -> FALSE
C42: Net Plant Depreciation Rate
D43: Base Case | F43: =LOOKUP(F21,'Cap Exp and Depreciation'!$38:$38,'Cap Exp and Depreciation'!$39:$39) -> FALSE | G43: =LOOKUP(G21,'Cap Exp and Depreciation'!$38:$38,'Cap Exp and Depreciation'!$39:$39) -> FALSE | H43: =LOOKUP(H21,'Cap Exp and Depreciation'!$38:$38,'Cap Exp and Depreciation'!$39:$39) -> FALSE | I43: =LOOKUP(I21,'Cap Exp and Depreciation'!$38:$38,'Cap Exp and Depreciation'!$39:$39) -> FALSE
D44: High Case | F44: =LOOKUP(F22,'Cap Exp and Depreciation'!$38:$38,'Cap Exp and Depreciation'!$39:$39) -> FALSE | G44: =LOOKUP(G22,'Cap Exp and Depreciation'!$38:$38,'Cap Exp and Depreciation'!$39:$39) -> FALSE | H44: =LOOKUP(H22,'Cap Exp and Depreciation'!$38:$38,'Cap Exp and Depreciation'!$39:$39) -> FALSE | I44: =LOOKUP(I22,'Cap Exp and Depreciation'!$38:$38,'Cap Exp and Depreciation'!$39:$39) -> FALSE
D45: Low Case | F45: =LOOKUP(F23,'Cap Exp and Depreciation'!$38:$38,'Cap Exp and Depreciation'!$39:$39) -> FALSE | G45: =LOOKUP(G23,'Cap Exp and Depreciation'!$38:$38,'Cap Exp and Depreciation'!$39:$39) -> FALSE | H45: =LOOKUP(H23,'Cap Exp and Depreciation'!$38:$38,'Cap Exp and Depreciation'!$39:$39) -> FALSE | I45: =LOOKUP(I23,'Cap Exp and Depreciation'!$38:$38,'Cap Exp and Depreciation'!$39:$39) -> FALSE
D46: Constant Case | F46: =LOOKUP(F24,'Cap Exp and Depreciation'!$38:$38,'Cap Exp and Depreciation'!$39:$39) -> FALSE | G46: =LOOKUP(G24,'Cap Exp and Depreciation'!$38:$38,'Cap Exp and Depreciation'!$39:$39) -> FALSE | H46: =LOOKUP(H24,'Cap Exp and Depreciation'!$38:$38,'Cap Exp and Depreciation'!$39:$39) -> FALSE | I46: =LOOKUP(I24,'Cap Exp and Depreciation'!$38:$38,'Cap Exp and Depreciation'!$39:$39) -> FALSE
D47: Low Terminal | F47: =LOOKUP(F25,'Cap Exp and Depreciation'!$38:$38,'Cap Exp and Depreciation'!$39:$39) -> FALSE | G47: =LOOKUP(G25,'Cap Exp and Depreciation'!$38:$38,'Cap Exp and Depreciation'!$39:$39) -> FALSE | H47: =LOOKUP(H25,'Cap Exp and Depreciation'!$38:$38,'Cap Exp and Depreciation'!$39:$39) -> FALSE | I47: =LOOKUP(I25,'Cap Exp and Depreciation'!$38:$38,'Cap Exp and Depreciation'!$39:$39) -> FALSE
D48: High Terminal | F48: =LOOKUP(F26,'Cap Exp and Depreciation'!$38:$38,'Cap Exp and Depreciation'!$39:$39) -> FALSE | G48: =LOOKUP(G26,'Cap Exp and Depreciation'!$38:$38,'Cap Exp and Depreciation'!$39:$39) -> FALSE | H48: =LOOKUP(H26,'Cap Exp and Depreciation'!$38:$38,'Cap Exp and Depreciation'!$39:$39) -> FALSE | I48: =LOOKUP(I26,'Cap Exp and Depreciation'!$38:$38,'Cap Exp and Depreciation'!$39:$39) -> FALSE
D50: =INDEX(D43:D48,$E$19) -> Base Case | F50: =INDEX(F43:F48,$E$19) -> FALSE | G50: =INDEX(G43:G48,$E$19) -> FALSE | H50: =INDEX(H43:H48,$E$19) -> FALSE | I50: =INDEX(I43:I48,$E$19) -> FALSE
B53: Operating Expense Assumptions
C54: CGS Scenario | E54: =Control!E15 -> 4
C56: Cost of Goods Sold Percent | E56: 2008 | F56: 2020 | G56: 2025 | H56: 2030 | I56: 2035
D57: Base Case | F57: 0.51 | G57: 0.5 | H57: 0.48 | I57: 0.47
D58: High Margin Case | F58: 0.51 | G58: 0.47 | H58: 0.45 | I58: 0.44
D59: Low Margin Case | F59: 0.52 | G59: 0.5 | H59: 0.5 | I59: 0.5
D60: Constant Case | F60: =E66/1009 -> 0.5203171457 | G60: =F60 -> 0.5203171457 | H60: =G60 -> 0.5203171457 | I60: 0.5203171457
D61: Low Terminal | F61: 0.51 | G61: 0.5 | H61: 0.48 | I61: 0.5
D62: High Terminal | F62: 0.51 | G62: 0.5 | H62: 0.48 | I62: 0.44
D64: =INDEX(D57:D62,$E$54) -> Constant Case | F64: =INDEX(F57:F62,$E$54) -> 0.5203171457 | G64: =INDEX(G57:G62,$E$54) -> 0.5203171457 | H64: =INDEX(H57:H62,$E$54) -> 0.5203171457 | I64: =INDEX(I57:I62,$E$54) -> 0.5203171457
D66: Constant | E66: =Control!G15 -> 525
C68: Other Operating Costs as Percent of Revenues
F69: 2009 | G69: 2010 | H69: 2011 | I69: 2012 | J69: 2013 | K69: 2014 | L69: 2015 | M69: 2016 | N69: 2017 | O69: 2018 | P69: 2019 | Q69: 2020 | R69: 2021 | S69: 2022 | T69: 2023 | U69: 2024 | V69: 2025 | W69: 2026 | X69: 2027 | Y69: 2028 | Z69: 2029 | AA69: 2030 | AB69: 2031 | AC69: 2032 | AD69: 2033 | AE69: 2034 | AF69: 2035 | AG69: 2036 | AH69: 2037 | AI69: 2038 | AJ69: 2039 | AK69: 2040
F70: ='Amazon Financial Model'!I2 -> TRUE | G70: ='Amazon Financial Model'!J2 -> TRUE | H70: ='Amazon Financial Model'!K2 -> TRUE | I70: ='Amazon Financial Model'!L2 -> TRUE | J70: ='Amazon Financial Model'!M2 -> TRUE | K70: ='Amazon Financial Model'!N2 -> TRUE | L70: ='Amazon Financial Model'!O2 -> TRUE | M70: ='Amazon Financial Model'!P2 -> TRUE | N70: ='Amazon Financial Model'!Q2 -> TRUE | O70: ='Amazon Financial Model'!R2 -> TRUE | P70: ='Amazon Financial Model'!S2 -> TRUE | Q70: ='Amazon Financial Model'!T2 -> FALSE | R70: ='Amazon Financial Model'!U2 -> FALSE | S70: ='Amazon Financial Model'!V2 -> FALSE | T70: ='Amazon Financial Model'!W2 -> FALSE | U70: ='Amazon Financial Model'!X2 -> FALSE | V70: ='Amazon Financial Model'!Y2 -> FALSE | W70: ='Amazon Financial Model'!Z2 -> FALSE | X70: ='Amazon Financial Model'!AA2 -> FALSE | Y70: ='Amazon Financial Model'!AB2 -> FALSE | Z70: ='Amazon Financial Model'!AC2 -> FALSE | AA70: ='Amazon Financial Model'!AD2 -> FALSE | AB70: ='Amazon Financial Model'!AE2 -> FALSE | AC70: ='Amazon Financial Model'!AF2 -> FALSE | AD70: ='Amazon Financial Model'!AG2 -> FALSE | AE70: ='Amazon Financial Model'!AH2 -> FALSE | AF70: ='Amazon Financial Model'!AI2 -> FALSE | AG70: ='Amazon Financial Model'!AJ2 -> FALSE | AH70: ='Amazon Financial Model'!AK2 -> FALSE | AI70: ='Amazon Financial Model'!AL2 -> FALSE | AJ70: ='Amazon Financial Model'!AM2 -> FALSE | AK70: ='Amazon Financial Model'!AN2 -> FALSE
D71: Fulfillment | F71: =IF(F70,'Amazon Financial Model'!I186,E71) -> 0.08372434616 | G71: =IF(G70,'Amazon Financial Model'!J186,F71) -> 0.08472693252 | H71: =IF(H70,'Amazon Financial Model'!K186,G71) -> 0.09518064771 | I71: =IF(I70,'Amazon Financial Model'!L186,H71) -> 0.1050693205 | J71: =IF(J70,'Amazon Financial Model'!M186,I71) -> 0.1153091925 | K71: =IF(K70,'Amazon Financial Model'!N186,J71) -> 0.1209826044 | L71: =IF(L70,'Amazon Financial Model'!O186,K71) -> 0.1253200755 | M71: =IF(M70,'Amazon Financial Model'!P186,L71) -> 0.1295638554 | N71: =IF(N70,'Amazon Financial Model'!Q186,M71) -> 0.1419551797 | O71: =IF(O70,'Amazon Financial Model'!R186,N71) -> 0.1461094866 | P71: =IF(P70,'Amazon Financial Model'!S186,O71) -> 0.1434183415 | Q71: =IF(Q70,'Amazon Financial Model'!T186,P71) -> 0.1434183415 | R71: =IF(R70,'Amazon Financial Model'!U186,Q71) -> 0.1434183415 | S71: =IF(S70,'Amazon Financial Model'!V186,R71) -> 0.1434183415 | T71: =IF(T70,'Amazon Financial Model'!W186,S71) -> 0.1434183415 | U71: =IF(U70,'Amazon Financial Model'!X186,T71) -> 0.1434183415 | V71: =IF(V70,'Amazon Financial Model'!Y186,U71) -> 0.1434183415 | W71: =IF(W70,'Amazon Financial Model'!Z186,V71) -> 0.1434183415 | X71: =IF(X70,'Amazon Financial Model'!AA186,W71) -> 0.1434183415 | Y71: =IF(Y70,'Amazon Financial Model'!AB186,X71) -> 0.1434183415 | Z71: =IF(Z70,'Amazon Financial Model'!AC186,Y71) -> 0.1434183415 | AA71: =IF(AA70,'Amazon Financial Model'!AD186,Z71) -> 0.1434183415 | AB71: =IF(AB70,'Amazon Financial Model'!AE186,AA71) -> 0.1434183415 | AC71: =IF(AC70,'Amazon Financial Model'!AF186,AB71) -> 0.1434183415 | AD71: =IF(AD70,'Amazon Financial Model'!AG186,AC71) -> 0.1434183415 | AE71: =IF(AE70,'Amazon Financial Model'!AH186,AD71) -> 0.1434183415 | AF71: =IF(AF70,'Amazon Financial Model'!AI186,AE71) -> 0.1434183415 | AG71: =IF(AG70,'Amazon Financial Model'!AJ186,AF71) -> 0.1434183415 | AH71: =IF(AH70,'Amazon Financial Model'!AK186,AG71) -> 0.1434183415 | AI71: =IF(AI70,'Amazon Financial Model'!AL186,AH71) -> 0.1434183415 | AJ71: =IF(AJ70,'Amazon Financial Model'!AM186,AI71) -> 0.1434183415 | AK71: =IF(AK70,'Amazon Financial Model'!AN186,AJ71) -> 0.1434183415
D72: Marketing | F72: =IF(F70,'Amazon Financial Model'!I192,E72) -> 0.02774491003 | G72: =IF(G70,'Amazon Financial Model'!J192,F72) -> 0.03008420068 | H72: =IF(H70,'Amazon Financial Model'!K192,G72) -> 0.03390394575 | I72: =IF(I70,'Amazon Financial Model'!L192,H72) -> 0.03941531763 | J72: =IF(J70,'Amazon Financial Model'!M192,I72) -> 0.04208080374 | K72: =IF(K70,'Amazon Financial Model'!N192,J72) -> 0.048680721 | L72: =IF(L70,'Amazon Financial Model'!O192,K72) -> 0.04910005046 | M72: =IF(M70,'Amazon Financial Model'!P192,L72) -> 0.05318890776 | N72: =IF(N70,'Amazon Financial Model'!Q192,M72) -> 0.05661003227 | O72: =IF(O70,'Amazon Financial Model'!R192,N72) -> 0.05931632079 | P72: =IF(P70,'Amazon Financial Model'!S192,O72) -> 0.06729596966 | Q72: =IF(Q70,'Amazon Financial Model'!T192,P72) -> 0.06729596966 | R72: =IF(R70,'Amazon Financial Model'!U192,Q72) -> 0.06729596966 | S72: =IF(S70,'Amazon Financial Model'!V192,R72) -> 0.06729596966 | T72: =IF(T70,'Amazon Financial Model'!W192,S72) -> 0.06729596966 | U72: =IF(U70,'Amazon Financial Model'!X192,T72) -> 0.06729596966 | V72: =IF(V70,'Amazon Financial Model'!Y192,U72) -> 0.06729596966 | W72: =IF(W70,'Amazon Financial Model'!Z192,V72) -> 0.06729596966 | X72: =IF(X70,'Amazon Financial Model'!AA192,W72) -> 0.06729596966 | Y72: =IF(Y70,'Amazon Financial Model'!AB192,X72) -> 0.06729596966 | Z72: =IF(Z70,'Amazon Financial Model'!AC192,Y72) -> 0.06729596966 | AA72: =IF(AA70,'Amazon Financial Model'!AD192,Z72) -> 0.06729596966 | AB72: =IF(AB70,'Amazon Financial Model'!AE192,AA72) -> 0.06729596966 | AC72: =IF(AC70,'Amazon Financial Model'!AF192,AB72) -> 0.06729596966 | AD72: =IF(AD70,'Amazon Financial Model'!AG192,AC72) -> 0.06729596966 | AE72: =IF(AE70,'Amazon Financial Model'!AH192,AD72) -> 0.06729596966 | AF72: =IF(AF70,'Amazon Financial Model'!AI192,AE72) -> 0.06729596966 | AG72: =IF(AG70,'Amazon Financial Model'!AJ192,AF72) -> 0.06729596966 | AH72: =IF(AH70,'Amazon Financial Model'!AK192,AG72) -> 0.06729596966 | AI72: =IF(AI70,'Amazon Financial Model'!AL192,AH72) -> 0.06729596966 | AJ72: =IF(AJ70,'Amazon Financial Model'!AM192,AI72) -> 0.06729596966 | AK72: =IF(AK70,'Amazon Financial Model'!AN192,AJ72) -> 0.06729596966
D73: General and administrative | F73: =IF(F70,'Amazon Financial Model'!I198,E73) -> 0.01338283896 | G73: =IF(G70,'Amazon Financial Model'!J198,F73) -> 0.01374108291 | H73: =IF(H70,'Amazon Financial Model'!K198,G73) -> 0.0136863781 | I73: =IF(I70,'Amazon Financial Model'!L198,H73) -> 0.0146661647 | J73: =IF(J70,'Amazon Financial Model'!M198,I73) -> 0.0151641326 | K73: =IF(K70,'Amazon Financial Model'!N198,J73) -> 0.01744055378 | L73: =IF(L70,'Amazon Financial Model'!O198,K73) -> 0.01632618732 | M73: =IF(M70,'Amazon Financial Model'!P198,L73) -> 0.01788406245 | N73: =IF(N70,'Amazon Financial Model'!Q198,M73) -> 0.02065599946 | O73: =IF(O70,'Amazon Financial Model'!R198,N73) -> 0.01861847162 | P73: =IF(P70,'Amazon Financial Model'!S198,O73) -> 0.0185475649 | Q73: =IF(Q70,'Amazon Financial Model'!T198,P73) -> 0.0185475649 | R73: =IF(R70,'Amazon Financial Model'!U198,Q73) -> 0.0185475649 | S73: =IF(S70,'Amazon Financial Model'!V198,R73) -> 0.0185475649 | T73: =IF(T70,'Amazon Financial Model'!W198,S73) -> 0.0185475649 | U73: =IF(U70,'Amazon Financial Model'!X198,T73) -> 0.0185475649 | V73: =IF(V70,'Amazon Financial Model'!Y198,U73) -> 0.0185475649 | W73: =IF(W70,'Amazon Financial Model'!Z198,V73) -> 0.0185475649 | X73: =IF(X70,'Amazon Financial Model'!AA198,W73) -> 0.0185475649 | Y73: =IF(Y70,'Amazon Financial Model'!AB198,X73) -> 0.0185475649 | Z73: =IF(Z70,'Amazon Financial Model'!AC198,Y73) -> 0.0185475649 | AA73: =IF(AA70,'Amazon Financial Model'!AD198,Z73) -> 0.0185475649 | AB73: =IF(AB70,'Amazon Financial Model'!AE198,AA73) -> 0.0185475649 | AC73: =IF(AC70,'Amazon Financial Model'!AF198,AB73) -> 0.0185475649 | AD73: =IF(AD70,'Amazon Financial Model'!AG198,AC73) -> 0.0185475649 | AE73: =IF(AE70,'Amazon Financial Model'!AH198,AD73) -> 0.0185475649 | AF73: =IF(AF70,'Amazon Financial Model'!AI198,AE73) -> 0.0185475649 | AG73: =IF(AG70,'Amazon Financial Model'!AJ198,AF73) -> 0.0185475649 | AH73: =IF(AH70,'Amazon Financial Model'!AK198,AG73) -> 0.0185475649 | AI73: =IF(AI70,'Amazon Financial Model'!AL198,AH73) -> 0.0185475649 | AJ73: =IF(AJ70,'Amazon Financial Model'!AM198,AI73) -> 0.0185475649 | AK73: =IF(AK70,'Amazon Financial Model'!AN198,AJ73) -> 0.0185475649
D74: Technology and content | F74: =IF(F70,'Amazon Financial Model'!I204,E74) -> 0.05059365947 | G74: =IF(G70,'Amazon Financial Model'!J204,F74) -> 0.05069582505 | H74: =IF(H70,'Amazon Financial Model'!K204,G74) -> 0.06050710319 | I74: =IF(I70,'Amazon Financial Model'!L204,H74) -> 0.07470577644 | J74: =IF(J70,'Amazon Financial Model'!M204,I74) -> 0.08817761779 | K74: =IF(K70,'Amazon Financial Model'!N204,J74) -> 0.1042275363 | L74: =IF(L70,'Amazon Financial Model'!O204,K74) -> 0.1171896903 | M74: =IF(M70,'Amazon Financial Model'!P204,L74) -> 0.1182833653 | N74: =IF(N70,'Amazon Financial Model'!Q204,M74) -> 0.1271743897 | O74: =IF(O70,'Amazon Financial Model'!R204,N74) -> 0.1238240005 | P74: =IF(P70,'Amazon Financial Model'!S204,O74) -> 0.1280862107 | Q74: =IF(Q70,'Amazon Financial Model'!T204,P74) -> 0.1280862107 | R74: =IF(R70,'Amazon Financial Model'!U204,Q74) -> 0.1280862107 | S74: =IF(S70,'Amazon Financial Model'!V204,R74) -> 0.1280862107 | T74: =IF(T70,'Amazon Financial Model'!W204,S74) -> 0.1280862107 | U74: =IF(U70,'Amazon Financial Model'!X204,T74) -> 0.1280862107 | V74: =IF(V70,'Amazon Financial Model'!Y204,U74) -> 0.1280862107 | W74: =IF(W70,'Amazon Financial Model'!Z204,V74) -> 0.1280862107 | X74: =IF(X70,'Amazon Financial Model'!AA204,W74) -> 0.1280862107 | Y74: =IF(Y70,'Amazon Financial Model'!AB204,X74) -> 0.1280862107 | Z74: =IF(Z70,'Amazon Financial Model'!AC204,Y74) -> 0.1280862107 | AA74: =IF(AA70,'Amazon Financial Model'!AD204,Z74) -> 0.1280862107 | AB74: =IF(AB70,'Amazon Financial Model'!AE204,AA74) -> 0.1280862107 | AC74: =IF(AC70,'Amazon Financial Model'!AF204,AB74) -> 0.1280862107 | AD74: =IF(AD70,'Amazon Financial Model'!AG204,AC74) -> 0.1280862107 | AE74: =IF(AE70,'Amazon Financial Model'!AH204,AD74) -> 0.1280862107 | AF74: =IF(AF70,'Amazon Financial Model'!AI204,AE74) -> 0.1280862107 | AG74: =IF(AG70,'Amazon Financial Model'!AJ204,AF74) -> 0.1280862107 | AH74: =IF(AH70,'Amazon Financial Model'!AK204,AG74) -> 0.1280862107 | AI74: =IF(AI70,'Amazon Financial Model'!AL204,AH74) -> 0.1280862107 | AJ74: =IF(AJ70,'Amazon Financial Model'!AM204,AI74) -> 0.1280862107 | AK74: =IF(AK70,'Amazon Financial Model'!AN204,AJ74) -> 0.1280862107
B76: Capital Expenditure to Depreciaiton | F76: =G76/100 -> 1 | G76: 100
B78: Depreciation Rate | F78: =G78/100 -> 0.34 | G78: 34
C80: End of Graph Period | F80: 2009 | J80: 28
F81: =F80+1 -> 2010
F82: =F81+1 -> 2011 | H82: =INDEX(F80:F120,J80) -> 2036 | J82: 1 | L82: =INDEX(F80:F120,J82) -> 2009
F83: 2012
F84: 2013
F85: 2014
F86: 2015
F87: 2016
F88: 2017
F89: 2018
F90: 2019
F91: 2020
F92: 2021
F93: 2022
F94: 2023
F95: 2024
F96: 2025
F97: 2026
F98: 2027
F99: 2028
F100: 2029
F101: 2030
F102: 2031
F103: 2032
F104: 2033
F105: 2034
F106: 2035
F107: 2036
F108: 2037
F109: 2038
F110: 2039
F111: 2040
F112: 2041
F113: 2042
F114: 2043
F115: 2044
F116: 2045
F117: 2046
F118: 2047
F119: 2048
F120: 2049

Sheet Amazon Financial Model
B1: Year | E1: Units | F1: Driver | G1: Sum/Test | H1: 2008 | I1: 2009 | J1: 2010 | K1: 2011 | L1: 2012 | M1: 2013 | N1: 2014 | O1: 2015 | P1: 2016 | Q1: 2017 | R1: 2018 | S1: 2019 | T1: 2020 | U1: 2021 | V1: 2022 | W1: 2023 | X1: 2024 | Y1: 2025 | Z1: 2026 | AA1: 2027 | AB1: 2028 | AC1: 2029 | AD1: 2030 | AE1: 2031 | AF1: 2032 | AG1: 2033 | AH1: 2034 | AI1: 2035 | AJ1: 2036 | AK1: 2037 | AL1: 2038 | AM1: 2039 | AN1: 2040
C2: Historic Period | F2: 2019 | H2: =H1<=$F$2 -> TRUE | I2: =I1<=$F$2 -> TRUE | J2: TRUE | K2: TRUE | L2: TRUE | M2: TRUE | N2: TRUE | O2: TRUE | P2: TRUE | Q2: TRUE | R2: TRUE | S2: TRUE | T2: FALSE | U2: FALSE | V2: FALSE | W2: FALSE | X2: FALSE | Y2: FALSE | Z2: FALSE | AA2: FALSE | AB2: FALSE | AC2: FALSE | AD2: FALSE | AE2: FALSE | AF2: FALSE | AG2: FALSE | AH2: FALSE | AI2: FALSE | AJ2: FALSE | AK2: FALSE | AL2: FALSE | AM2: FALSE | AN2: FALSE
C3: Months per Period | F3: 12 | G3: 3
B4: Income Statement
D5: Net product sales | I5: 22273 | J5: 30792 | K5: 42000 | L5: 51733 | M5: 60903 | N5: 70080 | O5: 79268 | P5: 0 | Q5: 0 | R5: 0 | S5: 0
D6: Net service sales | I6: 2236 | J6: 3412 | K6: 6077 | L6: 9360 | M6: 13549 | N6: 18908 | O6: 27738 | P6: 0 | Q6: 0 | R6: 0 | S6: 0
D7: Total net sales | I7: 24509 | J7: 34204 | K7: 48077 | L7: 61093 | M7: 74452 | N7: 88988 | O7: 107006 | P7: 135987 | Q7: 177866 | R7: 232887 | S7: 280522
D9: Cost of sales | I9: 18978 | J9: 26561 | K9: 37288 | L9: 45971 | M9: 54181 | N9: 62752 | O9: 71651 | P9: 88265 | Q9: 111934 | R9: 139156 | S9: 165536
D10: Gross profit | I10: =I7-I9 -> 5531 | J10: 7643 | K10: 10789 | L10: 15122 | M10: 20271 | N10: 26236 | O10: 35355 | P10: 47722 | Q10: 65932 | R10: 93731 | S10: 114986
D11: Operating expenses:
D12: Fulfillment | I12: 2052 | J12: 2898 | K12: 4576 | L12: 6419 | M12: 8585 | N12: 10766 | O12: 13410 | P12: 17619 | Q12: 25249 | R12: 34027 | S12: 40232
D13: Marketing | I13: 680 | J13: 1029 | K13: 1630 | L13: 2408 | M13: 3133 | N13: 4332 | O13: 5254 | P13: 7233 | Q13: 10069 | R13: 13814 | S13: 18878
D14: General and administrative | I14: 328 | J14: 470 | K14: 658 | L14: 896 | M14: 1129 | N14: 1552 | O14: 1747 | P14: 2432 | Q14: 3674 | R14: 4336 | S14: 5203
D15: Technology and content | I15: 1240 | J15: 1734 | K15: 2909 | L15: 4564 | M15: 6565 | N15: 9275 | O15: 12540 | P15: 16085 | Q15: 22620 | R15: 28837 | S15: 35931
D16: Other operating expense (income), net | I16: 102 | J16: 106 | K16: 154 | L16: 159 | M16: 114 | N16: 133 | O16: 171 | P16: 167 | Q16: 214 | R16: 296 | S16: 201
D17: Total operating expenses | I17: 23380 | J17: 32798 | K17: 47215 | L17: 60417 | M17: 73707 | N17: 88810 | O17: 104773 | P17: 131801 | Q17: 173760 | R17: 220466 | S17: 265981
D18: Operating income | I18: =I7-I17 -> 1129 | J18: 1406 | K18: 862 | L18: 676 | M18: 745 | N18: 178 | O18: 2233 | P18: 4186 | Q18: 4106 | R18: 12421 | S18: 14541
D19: Other income (expense), net | I19: 29 | J19: 79 | K19: 76 | L19: -80 | M19: -136 | N19: -118 | O19: -256 | P19: 90 | Q19: 346 | R19: -183 | S19: 203
D20: Interest expense | I20: -34 | J20: -39 | K20: -65 | L20: -92 | M20: -141 | N20: -210 | O20: -459 | P20: -484 | Q20: -848 | R20: -1417 | S20: -1600
D21: Interest income | I21: 37 | J21: 51 | K21: 61 | L21: 40 | M21: 38 | N21: 39 | O21: 50 | P21: 100 | Q21: 202 | R21: 440 | S21: 832
D22: Total non-operating income (expense) | I22: =SUM(I19:I21) -> 32 | J22: =SUM(J19:J21) -> 91 | K22: 72 | L22: -132 | M22: -239 | N22: -289 | O22: -665 | P22: -294 | Q22: -300 | R22: -1160 | S22: -565
D23: Income before income taxes | I23: =I18+I22 -> 1161 | J23: =J18+J22 -> 1497 | K23: 934 | L23: 544 | M23: 506 | N23: -111 | O23: 1568 | P23: 3892 | Q23: 3806 | R23: 11261 | S23: 13976
D24: Provision for income taxes | I24: -253 | J24: -352 | K24: -291 | L24: -428 | M24: -161 | N24: -167 | O24: -950 | P24: -1425 | Q24: -769 | R24: -1197 | S24: -2374
D25: Equity-method investment activity, net of tax | I25: -6 | J25: 7 | K25: -12 | L25: -155 | M25: -71 | N25: 37 | O25: -22 | P25: -96 | Q25: -4 | R25: 9 | S25: -14
D26: Net income (loss) | I26: =I23+I24+I25 -> 902 | J26: =J23+J24+J25 -> 1152 | K26: =K23+K24+K25 -> 631 | L26: -39 | M26: 274 | N26: -241 | O26: 596 | P26: 2371 | Q26: 3033 | R26: 10073 | S26: 11588
D28: Basic earnings per share | I28: 2.079999924 | J28: 2.579999924 | K28: 0 | L28: 0 | M28: 0.6000000238 | N28: -0.5199999809 | O28: 1.279999971 | P28: 5.010000229 | Q28: 6.320000172 | R28: 20.68000031 | S28: 23.45999908
D29: Basic (in shares) | I29: 433 | J29: 447 | K29: 453 | L29: 453 | M29: 457 | N29: 462 | O29: 467 | P29: 474 | Q29: 480 | R29: 487 | S29: 494
D30: Diluted (in shares) | I30: 442 | J30: 456 | K30: 461 | L30: 453 | M30: 465 | N30: 462 | O30: 477 | P30: 484 | Q30: 493 | R30: 500 | S30: 504
D31: Diluted earnings per share (in usd per share) | I31: 2.039999962 | J31: 2.529999971 | K31: 1.370000005 | L31: -0.09000000358 | M31: 0.5899999738 | N31: -0.5199999809 | O31: 1.25 | P31: 4.900000095 | Q31: 6.150000095 | R31: 20.13999939 | S31: 23.01000023
B34: Balance Sheet | E34: Direct | F34: Financing
C35: Current assets:
D36: Cash and cash equivalents | H36: 2769 | I36: 3444 | J36: 3777 | K36: 5269 | L36: 8084 | M36: 8658 | N36: 14557 | O36: 15890 | P36: 19334 | Q36: 20522 | R36: 31750 | S36: 36092
D37: Marketable securities | H37: 958 | I37: 2922 | J37: 4985 | K37: 4307 | L37: 3364 | M37: 3789 | N37: 2859 | O37: 3918 | P37: 6647 | Q37: 10464 | R37: 9500 | S37: 18929
D38: Inventories | H38: 1399 | I38: 2171 | J38: 3202 | K38: 4992 | L38: 6031 | M38: 7411 | N38: 8299 | O38: 10243 | P38: 11461 | Q38: 16047 | R38: 17174 | S38: 20497
D39: Accounts receivable, net and other | H39: 827 | I39: 988 | J39: 1587 | K39: 2571 | L39: 3817 | M39: 4767 | N39: 5612 | O39: 5654 | P39: 8339 | Q39: 13164 | R39: 16677 | S39: 20816
D40: Deferred tax assets | H40: 204 | I40: 272 | J40: 196 | K40: 351 | L40: 0 | M40: 0 | N40: 0 | O40: 0 | P40: 0 | Q40: 0 | R40: 0 | S40: 0
D41: Total current assets | H41: =SUM(H36:H40) -> 6157 | I41: =SUM(I36:I40) -> 9797 | J41: 13747 | K41: 17490 | L41: 21296 | M41: 24625 | N41: 31327 | O41: 35705 | P41: 45781 | Q41: 60197 | R41: 75101 | S41: 96334
D42: Property and equipment, net | H42: 854 | I42: 1290 | J42: 2414 | K42: 4417 | L42: 7060 | M42: 10949 | N42: 16967 | O42: 21838 | P42: 29114 | Q42: 48866 | R42: 61797 | S42: 72705
D43: Goodwill | H43: 438 | I43: 1234 | J43: 1349 | K43: 1955 | L43: 2552 | M43: 2655 | N43: 3319 | O43: 3759 | P43: 3784 | Q43: 13350 | R43: 14548 | S43: 14754
D44: Operating leases | H44: 0 | I44: 0 | J44: 0 | K44: 0 | L44: 0 | M44: 0 | N44: 0 | O44: 0 | P44: 0 | Q44: 0 | R44: 0 | S44: 25141
D45: Other assets | H45: 720 | I45: 1474 | J45: 1265 | K45: 1388 | L45: 1647 | M45: 1930 | N45: 2892 | O45: 3445 | P45: 4723 | Q45: 8897 | R45: 11202 | S45: 16314
D46: Reconciliation | H46: 145 | I46: 18 | J46: 22 | K46: 28 | L46: 0 | M46: 0 | N46: 0 | O46: 0 | P46: 0 | Q46: 0 | R46: 0 | S46: 0
D47: Total assets | H47: =SUM(H41:H46) -> 8314 | I47: =SUM(I41:I46) -> 13813 | J47: 18797 | K47: 25278 | L47: 32555 | M47: 40159 | N47: 54505 | O47: 64747 | P47: 83402 | Q47: 131310 | R47: 162648 | S47: 225248
C49: Current liabilities:
D50: Accounts payable | H50: 3594 | I50: 5605 | J50: 8051 | K50: 11145 | L50: 13318 | M50: 15133 | N50: 16459 | O50: 20397 | P50: 25309 | Q50: 34616 | R50: 38192 | S50: 47183
D51: Unearned revenue | H51: 0 | I51: 0 | J51: 0 | K51: 0 | L51: 792 | M51: 1159 | N51: 1823 | O51: 3118 | P51: 4768 | Q51: 5097 | R51: 6536 | S51: 8190
D52: Accrued expenses and other | H52: 1152 | I52: 1759 | J52: 2321 | K52: 3751 | L52: 4892 | M52: 6688 | N52: 9807 | O52: 10372 | P52: 13739 | Q52: 18170 | R52: 23663 | S52: 32439
D53: Total current liabilities | H53: =SUM(H50:H52) -> 4746 | I53: =SUM(I50:I52) -> 7364 | J53: 10372 | K53: 14896 | L53: 19002 | M53: 22980 | N53: 28089 | O53: 33887 | P53: 43816 | Q53: 57883 | R53: 68391 | S53: 87812
D54: Long-term debt | H54: 409 | I54: 109 | J54: 1561 | K54: 2625 | L54: 3084 | M54: 3191 | N54: 8265 | O54: 8227 | P54: 7694 | Q54: 24743 | R54: 23495 | S54: 23414
D55: Long-term lease liabilities | H55: 0 | I55: 0 | J55: 0 | K55: 0 | L55: 0 | M55: 0 | N55: 0 | O55: 0 | P55: 0 | Q55: 0 | R55: 9650 | S55: 39791
D56: Other long-term liabilities | H56: 487 | I56: 1083 | J56: 0 | K56: 0 | L56: 2277 | M56: 4242 | N56: 7410 | O56: 9249 | P56: 12607 | Q56: 20975 | R56: 17563 | S56: 12171
D57: Preferred stock | H57: 4 | I57: 5 | J57: 5 | K57: 5 | L57: 5 | M57: 5 | N57: 5 | O57: 5 | P57: 5 | Q57: 5 | R57: 5 | S57: 5
D58: Treasury stock, at cost | H58: -600 | I58: -600 | J58: -600 | K58: -877 | L58: -1837 | M58: -1837 | N58: -1837 | O58: -1837 | P58: -1837 | Q58: -1837 | R58: -1837 | S58: -1837
D59: Additional paid-in capital | H59: 4121 | I59: 5736 | J59: 6325 | K59: 6990 | L59: 8347 | M59: 9573 | N59: 11135 | O59: 13394 | P59: 17186 | Q59: 21389 | R59: 26791 | S59: 33658
D60: Accumulated other comprehensive income (loss) | H60: -123 | I60: -56 | J60: -190 | K60: -316 | L60: -239 | M60: -185 | N60: -511 | O60: -723 | P60: -985 | Q60: -484 | R60: -1035 | S60: -986
D61: Retained earnings | H61: -730 | I61: 172 | J61: 1324 | K61: 1955 | L61: 1916 | M61: 2190 | N61: 1949 | O61: 2545 | P61: 4916 | Q61: 8636 | R61: 19625 | S61: 31220
D62: Total stockholders’ equity | H62: 2672 | I62: 5257 | J62: 6864 | K62: 7757 | L62: 8192 | M62: 9746 | N62: 10741 | O62: 13384 | P62: 19285 | Q62: 27709 | R62: 43549 | S62: 62060
D63: Total liabilities and stockholders’ equity | H63: =SUM(H53:H56)+H62 -> 8314 | I63: 13813 | J63: 18797 | K63: 25278 | L63: 32555 | M63: 40159 | N63: 54505 | O63: 64747 | P63: 83402 | Q63: 131310 | R63: 162648 | S63: 225248
D65: Invested Capital Direct
D66: Invested Capital Financing
D67: Difference
D69: Test | G69: =AND(H69:S69) -> TRUE | H69: =H47=H63 -> TRUE | I69: =I47=I63 -> TRUE | J69: TRUE | K69: TRUE | L69: TRUE | M69: TRUE | N69: TRUE | O69: TRUE | P69: TRUE | Q69: TRUE | R69: TRUE | S69: TRUE
B71: Cash Flow
D72: Net income | I72: 902 | J72: 1152 | K72: 631 | L72: -39 | M72: 274 | N72: -241 | O72: 596 | P72: 2371 | Q72: 3033 | R72: 10073 | S72: 11588
D73: Depreciation of fixed assets, including internal-use software and website development, and other amortization | I73: 378 | J73: 568 | K73: 1083 | L73: 2159 | M73: 3253 | N73: 4746 | O73: 6281 | P73: 8116 | Q73: 11478 | R73: 15341 | S73: 21789
D74: Deferred income taxes | I74: 81 | J74: 4 | K74: 136 | L74: -265 | M74: -156 | N74: -316 | O74: 81 | P74: -246 | Q74: -29 | R74: 441 | S74: 796
D75: Other expense (income), net | I75: -15 | J75: -79 | K75: -56 | L75: 253 | M75: 166 | N75: 59 | O75: 250 | P75: -20 | Q75: -292 | R75: 219 | S75: -249
D76: Other operating expense (income), net | I76: 103 | J76: 106 | K76: 154 | L76: 154 | M76: 114 | N76: 129 | O76: 155 | P76: 160 | Q76: 202 | R76: 274 | S76: 164
D77: Stock-based compensation | I77: 341 | J77: 424 | K77: 557 | L77: 833 | M77: 1134 | N77: 1497 | O77: 2119 | P77: 2975 | Q77: 4215 | R77: 5418 | S77: 6864
D78: Losses (gains) on sales of marketable securities, net | I78: -4 | J78: -2 | K78: -4 | L78: -9 | M78: 1 | N78: 0 | O78: 0 | P78: 0 | Q78: 0 | R78: 0 | S78: 0
D79: Excess tax benefits from stock-based compensation | I79: -105 | J79: -259 | K79: -62 | L79: -429 | M79: -78 | N79: -6 | O79: -119 | P79: 0 | Q79: 0 | R79: 0 | S79: 0
D81: Accounts receivable, net and other | I81: -481 | J81: -295 | K81: -866 | L81: -861 | M81: -846 | N81: -1039 | O81: -1755 | P81: -3436 | Q81: -4780 | R81: -4615 | S81: -7681
D82: Inventories | I82: -531 | J82: -1019 | K82: -1777 | L82: -999 | M82: -1410 | N82: -1193 | O82: -2187 | P82: -1426 | Q82: -3583 | R82: -1314 | S82: -3278
D83: Accounts payable | I83: 1859 | J83: 2373 | K83: 2997 | L83: 2070 | M83: 1888 | N83: 1759 | O83: 4294 | P83: 5030 | Q83: 7100 | R83: 3263 | S83: 8193
D84: Accrued expenses and other | I84: 300 | J84: 740 | K84: 1067 | L84: 1038 | M84: 736 | N84: 706 | O84: 913 | P84: 1724 | Q84: 283 | R84: 472 | S84: -1383
D85: Unearned revenue | I85: 0 | J85: 0 | K85: 0 | L85: 0 | M85: 0 | N85: 0 | O85: 0 | P85: 1955 | Q85: 738 | R85: 1151 | S85: 1711
D86: Additions to unearned revenue | I86: 1054 | J86: 687 | K86: 1064 | L86: 1796 | M86: 2691 | N86: 4433 | O86: 7401 | P86: 0 | Q86: 0 | R86: 0 | S86: 0
D87: Amortization of previously unearned revenue | I87: -589 | J87: -905 | K87: -1021 | L87: -1521 | M87: -2292 | N87: -3692 | O87: -6109 | P87: 0 | Q87: 0 | R87: 0 | S87: 0
D88: Net cash provided by (used in) operating activities | I88: 3293 | J88: 3495 | K88: 3903 | L88: 4180 | M88: 5475 | N88: 6842 | O88: 11920 | P88: 17203 | Q88: 18365 | R88: 30723 | S88: 38514
C90: INVESTING ACTIVITIES:
D91: Proceeds from property and equipment incentives | P91: 1067 | Q91: 1897 | R91: 2104 | S91: 4172
D92: Purchases of property and equipment | I92: -373 | J92: -979 | K92: -1811 | L92: -3785 | M92: -3444 | N92: -4893 | O92: -4589 | P92: -7804 | Q92: -11955 | R92: -13427 | S92: -16861
D93: Acquisitions, net of cash acquired, and other | I93: -40 | J93: -352 | K93: -705 | L93: -745 | M93: -312 | N93: -979 | O93: -795 | P93: -116 | Q93: -13972 | R93: -2186 | S93: -2461
C95: FINANCING ACTIVITIES:
D96: Proceeds from Issuance of Long-term Debt | I96: 0 | J96: 0 | K96: 0 | L96: 0 | M96: 0 | N96: 6359 | O96: 353 | P96: 0 | Q96: 0 | R96: 0 | S96: 0
D97: Common stock repurchased | I97: 0 | J97: 0 | K97: -277 | L97: -960 | M97: 0 | N97: 0 | O97: 0 | P97: 0 | Q97: 0 | R97: 0 | S97: 0
D98: Principal repayments of finance leases | I98: 0 | J98: 0 | K98: 0 | L98: 0 | M98: -5 | N98: -135 | O98: -121 | P98: -147 | Q98: -4799 | R98: -7449 | S98: -9628
D99: Repayments of long-term debt and other | I99: -472 | J99: -221 | K99: -444 | L99: -588 | M99: -775 | N99: -1285 | O99: -2462 | P99: -3860 | Q99: -1301 | R99: -668 | S99: -2684
D100: Principal repayments of financing obligations | I100: 0 | J100: 0 | K100: 0 | L100: 0 | M100: -231 | N100: -513 | O100: -1652 | P100: -327 | Q100: -200 | R100: -337 | S100: -27
D101: Proceeds from long-term debt and other | I101: 87 | J101: 143 | K101: 177 | L101: 3378 | M101: 394 | N101: 0 | O101: 0 | P101: 618 | Q101: 16228 | R101: 768 | S101: 2273
D102: Net cash provided by (used in) financing activities | I102: -280 | J102: 181 | K102: -482 | L102: 2259 | M102: -539 | N102: 4432 | O102: -3763 | P102: -3716 | Q102: 9928 | R102: -7686 | S102: -10066
D103: Foreign currency effect on cash, cash equivalents, and restricted cash | I103: 0 | J103: 0 | K103: 0 | L103: 0 | M103: 0 | N103: -310 | O103: -374 | P103: -212 | Q103: 713 | R103: -351 | S103: 70
D104: Net increase (decrease) in cash, cash equivalents, and restricted cash | I104: 0 | J104: 0 | K104: 0 | L104: 0 | M104: 0 | N104: 0 | O104: 0 | P104: 3759 | Q104: 1922 | R104: 10317 | S104: 4237
D105: Net cash provided by (used in) investing activities | I105: 0 | J105: 0 | K105: -1930 | L105: -3595 | M105: -4276 | N105: -5065 | O105: -6450 | P105: -9516 | Q105: -27084 | R105: -12369 | S105: -24281
D106: Sales and maturities of marketable securities | I106: 1966 | J106: 4250 | K106: 6843 | L106: 4237 | M106: 2306 | N106: 3349 | O106: 3025 | P106: 4577 | Q106: 9677 | R106: 8240 | S106: 22681
D107: Purchases of marketable securities | I107: 0 | J107: 0 | K107: 0 | L107: 0 | M107: 2826 | N107: -2542 | O107: -4091 | P107: -7240 | Q107: -12731 | R107: -7100 | S107: -31812
D108: Purchases of marketable securities and other investments | I108: -3890 | J108: -6279 | K108: -6257 | L108: -3302 | M108: 0 | N108: 0 | O108: 0 | P108: 0 | Q108: 0 | R108: 0 | S108: 0
D109: Net cash used in investing activities | I109: -2337 | J109: -3360 | K109: 0 | L109: 0 | M109: 0 | N109: 0 | O109: 0 | P109: 0 | Q109: 0 | R109: 0 | S109: 0
D110: Foreign-currency effect on cash and cash equivalents | I110: -1 | J110: 17 | K110: 1 | L110: -29 | M110: -86 | N110: 0 | O110: 0 | P110: 0 | Q110: 0 | R110: 0 | S110: 0
D111: Net increase (decrease) in cash and cash equivalents | I111: 0 | J111: 0 | K111: 1492 | L111: 2815 | M111: 574 | N111: 5899 | O111: 1333 | P111: 0 | Q111: 0 | R111: 0 | S111: 0
D112: Net increase in cash and cash equivalents | I112: 675 | J112: 333 | K112: 0 | L112: 0 | M112: 0 | N112: 0 | O112: 0 | P112: 0 | Q112: 0 | R112: 0 | S112: 0
C113: CASH AND CASH EQUIVALENTS, END OF PERIOD | I113: 3444 | J113: 3777 | K113: 5269 | L113: 8084 | M113: 8658 | N113: 14557 | O113: 15890 | P113: 0 | Q113: 0 | R113: 0 | S113: 0
D114: Cash paid for interest on long term debt | I114: 32 | J114: 11 | K114: 0 | L114: 0 | M114: 0 | N114: 0 | O114: 0 | P114: 0 | Q114: 0 | R114: 0 | S114: 0
D115: Cash paid for interest on long-term debt | I115: 0 | J115: 0 | K115: 14 | L115: 31 | M115: 97 | N115: 91 | O115: 325 | P115: 290 | Q115: 328 | R115: 854 | S115: 875
D116: Cash paid for operating leases | I116: 0 | J116: 0 | K116: 0 | L116: 0 | M116: 0 | N116: 0 | O116: 0 | P116: 0 | Q116: 0 | R116: 0 | S116: 3361
D117: Cash paid for interest on capital leases | I117: 0 | J117: 0 | K117: 0 | L117: 0 | M117: 0 | N117: 0 | O117: 0 | P117: 0 | Q117: 200 | R117: 381 | S117: 0
D118: Assets Held under Capital Leases | I118: 0 | J118: 0 | K118: 0 | L118: 0 | M118: 0 | N118: 0 | O118: 0 | P118: 0 | Q118: 0 | R118: 0 | S118: 0
D119: Cash paid for interest on capital and finance lease obligations | I119: 0 | J119: 0 | K119: 0 | L119: 0 | M119: 41 | N119: 86 | O119: 153 | P119: 206 | Q119: 0 | R119: 0 | S119: 0
D120: Cash paid for interest on finance leases | I120: 0 | J120: 0 | K120: 0 | L120: 0 | M120: 0 | N120: 0 | O120: 0 | P120: 0 | Q120: 0 | R120: 0 | S120: 647
D122: Assets held under capital leases | I122: 0 | J122: 0 | K122: 0 | L122: 0 | M122: 0 | N122: 0 | O122: 0 | P122: 0 | Q122: 0 | R122: 0 | S122: 0
D123: Cash paid for income taxes (net of refunds) | I123: 48 | J123: 75 | K123: 33 | L123: 112 | M123: 169 | N123: 0 | O123: 0 | P123: 0 | Q123: 0 | R123: 0 | S123: 0
D124: Cash paid for interest on financing obligations | I124: 0 | J124: 0 | K124: 0 | L124: 0 | M124: 0 | N124: 0 | O124: 0 | P124: 0 | Q124: 119 | R124: 194 | S124: 39
D126: Cash paid for income taxes, net of refunds | I126: 0 | J126: 0 | K126: 0 | L126: 0 | M126: 0 | N126: 177 | O126: 273 | P126: 412 | Q126: -957 | R126: -1184 | S126: 881
D127: SUPPLEMENTAL CASH FLOW INFORMATION: | I127: 0 | J127: 0 | K127: 0 | L127: 0 | M127: 0 | N127: 0 | O127: 0 | P127: 0 | Q127: 0 | R127: 0 | S127: 0
D128: Assets Held under Build-To-Suit Leases | I128: 0 | J128: 0 | K128: 0 | L128: 0 | M128: 0 | N128: 0 | O128: 0 | P128: 0 | Q128: 0 | R128: 0 | S128: 0
D129: Assets acquired under operating leases | I129: 0 | J129: 0 | K129: 0 | L129: 0 | M129: 0 | N129: 0 | O129: 0 | P129: 0 | Q129: 0 | R129: 0 | S129: 7870
D130: Assets held under build-to-suit leases | I130: 0 | J130: 0 | K130: 0 | L130: 0 | M130: 0 | N130: 0 | O130: 0 | P130: 0 | Q130: 0 | R130: 0 | S130: 0
D131: Fixed assets acquired | I131: 147 | J131: 405 | K131: 0 | L131: 0 | M131: 0 | N131: 0 | O131: 0 | P131: 0 | Q131: 0 | R131: 0 | S131: 0
D132: Property and equipment acquired under finance leases | I132: 0 | J132: 0 | K132: 0 | L132: 0 | M132: 0 | N132: 0 | O132: 0 | P132: 0 | Q132: 0 | R132: 0 | S132: 13723
D133: Property and equipment acquired | I133: 0 | J133: 0 | K133: 753 | L133: 802 | M133: 1867 | N133: 4008 | O133: 4717 | P133: 0 | Q133: 0 | R133: 0 | S133: 0
D134: Property and equipment acquired under build-to-suit arrangements | I134: 0 | J134: 0 | K134: 0 | L134: 0 | M134: 0 | N134: 0 | O134: 0 | P134: 0 | Q134: 3541 | R134: 3641 | S134: 1362
B136: Return on Invested Capital
C137: Part 1: NOPAT
D138: Operating Income | I138: =I18 -> 1129 | J138: =J18 -> 1406 | K138: 862 | L138: 676 | M138: 745 | N138: 178 | O138: 2233 | P138: 4186 | Q138: 4106 | R138: 12421 | S138: 14541
D139: Tax Rate
D140: Income Taxes | I140: =-I24 -> 253 | J140: =-J24 -> 352 | K140: 291 | L140: 428 | M140: 161 | N140: 167 | O140: 950 | P140: 1425 | Q140: 769 | R140: 1197 | S140: 2374
D141: Income Before Tax | I141: =I23 -> 1161 | J141: =J23 -> 1497 | K141: 934 | L141: 544 | M141: 506 | N141: -111 | O141: 1568 | P141: 3892 | Q141: 3806 | R141: 11261 | S141: 13976
D142: Tax Rate | I142: =I140/I141 -> 0.21791559 | J142: =J140/J141 -> 0.2351369405 | K142: 0.3115631692 | L142: 0.7867647059 | M142: 0.3181818182 | N142: -1.504504505 | O142: 0.6058673469 | P142: 0.3661356629 | Q142: 0.2020493957 | R142: 0.1062960661 | S142: 0.1698626216
D144: NOPAT | I144: =I138*(1-I142) -> 882.9732989 | J144: =J138*(1-J142) -> 1075.397462 | K144: 593.4325482 | L144: 144.1470588 | M144: 507.9545455 | N144: 445.8018018 | O144: 880.0982143 | P144: 2653.356115 | Q144: 3276.385181 | R144: 11100.69656 | S144: 12071.02762
C146: Part 2: Invested Capital | H146: =H65 -> 0 | I146: =I65 -> 0 | J146: 0 | K146: 0 | L146: 0 | M146: 0 | N146: 0 | O146: 0 | P146: 0 | Q146: 0 | R146: 0 | S146: 0
D147: Average Invested Capital | I147: =AVERAGE(H146:I146) -> 0 | J147: =AVERAGE(I146:J146) -> 0 | K147: 0 | L147: 0 | M147: 0 | N147: 0 | O147: 0 | P147: 0 | Q147: 0 | R147: 0 | S147: 0
C149: Part 3: ROIC
C151: Return on Equity
D152: Net Income | I152: =I26 -> 902 | J152: =J26 -> 1152 | K152: 631 | L152: -39 | M152: 274 | N152: -241 | O152: 596 | P152: 2371 | Q152: 3033 | R152: 10073 | S152: 11588
D153: Equity Capital | H153: =H62 -> 2672 | I153: =I62 -> 5257 | J153: 6864 | K153: 7757 | L153: 8192 | M153: 9746 | N153: 10741 | O153: 13384 | P153: 19285 | Q153: 27709 | R153: 43549 | S153: 62060
D154: Average Equity Capital | I154: =AVERAGE(H153:I153) -> 3964.5 | J154: =AVERAGE(I153:J153) -> 6060.5 | K154: 7310.5 | L154: 7974.5 | M154: 8969 | N154: 10243.5 | O154: 12062.5 | P154: 16334.5 | Q154: 23497 | R154: 35629 | S154: 52804.5
D155: ROE | I155: =I152/I154 -> 0.2275192332 | J155: =J152/J154 -> 0.1900833265 | K155: 0.08631420559 | L155: -0.004890588752 | M155: 0.03054967109 | N155: -0.02352711476 | O155: 0.04940932642 | P155: 0.1451528972 | Q155: 0.1290803081 | R155: 0.2827191333 | S155: 0.2194509938
C157: Debt to Capital
D158: Total Debt | H158: =H54+H55+H56 -> 896 | I158: =I54+I55+I56 -> 1192 | J158: 1561 | K158: 2625 | L158: 5361 | M158: 7433 | N158: 15675 | O158: 17476 | P158: 20301 | Q158: 45718 | R158: 50708 | S158: 75376
D159: Total Equity | H159: =H62 -> 2672 | I159: =I62 -> 5257 | J159: 6864 | K159: 7757 | L159: 8192 | M159: 9746 | N159: 10741 | O159: 13384 | P159: 19285 | Q159: 27709 | R159: 43549 | S159: 62060
D160: Total Capital | H160: =H158+H159 -> 3568 | I160: =I158+I159 -> 6449 | J160: 8425 | K160: 10382 | L160: 13553 | M160: 17179 | N160: 26416 | O160: 30860 | P160: 39586 | Q160: 73427 | R160: 94257 | S160: 137436
D161: Debt to Capital | H161: =H158/H160 -> 0.2511210762 | I161: =I158/I160 -> 0.1848348581 | J161: 0.1852818991 | K161: 0.2528414564 | L161: 0.395558179 | M161: 0.4326794342 | N161: 0.5933903695 | O161: 0.5662994167 | P161: 0.5128328197 | Q161: 0.6226320019 | R161: 0.5379759593 | S161: 0.5484443668
B163: Revenue Analysis
J164: =J1 -> 2010 | K164: =K1 -> 2011 | L164: 2012 | M164: 2013 | N164: 2014 | O164: 2015 | P164: 2016 | Q164: 2017 | R164: 2018 | S164: 2019 | T164: 2020 | U164: 2021 | V164: 2022 | W164: 2023 | X164: 2024 | Y164: 2025 | Z164: 2026 | AA164: 2027 | AB164: 2028 | AC164: 2029 | AD164: 2030 | AE164: 2031 | AF164: 2032 | AG164: 2033 | AH164: 2034 | AI164: 2035 | AJ164: 2036 | AK164: 2037 | AL164: 2038 | AM164: 2039 | AN164: 2040
C165: Historic Revenue Growth
C166: Projected Growth Lookup
C167: Projected Growth Interpolate
C168: Historic and Projected Growth Rate
C170: Applied Revenue | E170: USD Million | F170: =Scenarios!D28 -> 0 | H170: =IF(H2,H7,G170*(1+H167)) -> 0 | I170: =IF(I2,I7,H170*(1+I167)) -> 24509 | J170: 34204 | K170: 48077 | L170: 61093 | M170: 74452 | N170: 88988 | O170: 107006 | P170: 135987 | Q170: 177866 | R170: 232887 | S170: 280522 | T170: 280522 | U170: 280522 | V170: 280522 | W170: 280522 | X170: 280522 | Y170: 280522 | Z170: 280522 | AA170: 280522 | AB170: 280522 | AC170: 280522 | AD170: 280522 | AE170: 280522 | AF170: 280522 | AG170: 280522 | AH170: 280522 | AI170: 280522 | AJ170: 280522 | AK170: 280522 | AL170: 280522 | AM170: 280522 | AN170: =IF(AN2,AN7,AM170*(1+AN167)) -> 280522
C171: US GDP | E171: USD Million | F171: 20.54 | G171: =F171*1000000 -> 20540000
B173: Operating Expenses
C174: Cost of Goods Sold | I174: =I9 -> 18978 | J174: =J9 -> 26561 | K174: 37288 | L174: 45971 | M174: 54181 | N174: 62752 | O174: 71651 | P174: 88265 | Q174: 111934 | R174: 139156 | S174: 165536 | T174: 0 | U174: 0 | V174: 0 | W174: 0 | X174: 0 | Y174: 0 | Z174: 0 | AA174: 0 | AB174: 0 | AC174: 0 | AD174: 0 | AE174: 0 | AF174: 0 | AG174: 0 | AH174: 0 | AI174: 0 | AJ174: 0 | AK174: 0 | AL174: 0 | AM174: 0 | AN174: =AN9 -> 0
C175: Less: Depreciation | I175: =I73 -> 378 | J175: =J73 -> 568 | K175: 1083 | L175: 2159 | M175: 3253 | N175: 4746 | O175: 6281 | P175: 8116 | Q175: 11478 | R175: 15341 | S175: 21789 | T175: 0 | U175: 0 | V175: 0 | W175: 0 | X175: 0 | Y175: 0 | Z175: 0 | AA175: 0 | AB175: 0 | AC175: 0 | AD175: 0 | AE175: 0 | AF175: 0 | AG175: 0 | AH175: 0 | AI175: 0 | AJ175: 0 | AK175: 0 | AL175: 0 | AM175: 0 | AN175: =AN73 -> 0
C176: Cost of Goods Sold Less Depreciation | I176: =I174-I175 -> 18600 | J176: =J174-J175 -> 25993 | K176: 36205 | L176: 43812 | M176: 50928 | N176: 58006 | O176: 65370 | P176: 80149 | Q176: 100456 | R176: 123815 | S176: 143747 | T176: 0 | U176: 0 | V176: 0 | W176: 0 | X176: 0 | Y176: 0 | Z176: 0 | AA176: 0 | AB176: 0 | AC176: 0 | AD176: 0 | AE176: 0 | AF176: 0 | AG176: 0 | AH176: 0 | AI176: 0 | AJ176: 0 | AK176: 0 | AL176: 0 | AM176: 0 | AN176: 0
C178: Historic Cost of Goods Sold as Percent of Revenues | E178: % | I178: =IF(I2,I176/I170) -> 0.7589048921 | J178: 0.7599403579 | K178: 0.7530627951 | L178: 0.7171361694 | M178: 0.6840380379 | N178: 0.6518406976 | O178: 0.6109003233 | P178: 0.5893872208 | Q178: 0.5647847256 | R178: 0.5316526899 | S178: 0.5124268328 | T178: FALSE | U178: FALSE | V178: FALSE | W178: FALSE | X178: FALSE | Y178: FALSE | Z178: FALSE | AA178: FALSE | AB178: FALSE | AC178: FALSE | AD178: FALSE | AE178: FALSE | AF178: FALSE | AG178: FALSE | AH178: FALSE | AI178: FALSE | AJ178: FALSE | AK178: FALSE | AL178: FALSE | AM178: FALSE | AN178: FALSE
C179: Projected Cost of Goods of Sold Percent | E179: % | F179: =Scenarios!D64 -> Constant Case | I179: =interpolate_look_up(I1,Scenarios!56:56,Scenarios!64:64) -> 0 | J179: =interpolate_look_up(J1,Scenarios!56:56,Scenarios!64:64) -> 0 | K179: =interpolate_look_up(K1,Scenarios!56:56,Scenarios!64:64) -> 0 | L179: =interpolate_look_up(L1,Scenarios!56:56,Scenarios!64:64) -> 0 | M179: =interpolate_look_up(M1,Scenarios!56:56,Scenarios!64:64) -> 0 | N179: =interpolate_look_up(N1,Scenarios!56:56,Scenarios!64:64) -> 0 | O179: =interpolate_look_up(O1,Scenarios!56:56,Scenarios!64:64) -> 0 | P179: =interpolate_look_up(P1,Scenarios!56:56,Scenarios!64:64) -> 0 | Q179: =interpolate_look_up(Q1,Scenarios!56:56,Scenarios!64:64) -> 0 | R179: =interpolate_look_up(R1,Scenarios!56:56,Scenarios!64:64) -> 0 | S179: =interpolate_look_up(S1,Scenarios!56:56,Scenarios!64:64) -> 0 | T179: =interpolate_look_up(T1,Scenarios!56:56,Scenarios!64:64) -> 0.5203171457 | U179: =interpolate_look_up(U1,Scenarios!56:56,Scenarios!64:64) -> 0.5203171457 | V179: =interpolate_look_up(V1,Scenarios!56:56,Scenarios!64:64) -> 0.5203171457 | W179: =interpolate_look_up(W1,Scenarios!56:56,Scenarios!64:64) -> 0.5203171457 | X179: =interpolate_look_up(X1,Scenarios!56:56,Scenarios!64:64) -> 0.5203171457 | Y179: =interpolate_look_up(Y1,Scenarios!56:56,Scenarios!64:64) -> 0.5203171457 | Z179: =interpolate_look_up(Z1,Scenarios!56:56,Scenarios!64:64) -> 0.5203171457 | AA179: =interpolate_look_up(AA1,Scenarios!56:56,Scenarios!64:64) -> 0.5203171457 | AB179: =interpolate_look_up(AB1,Scenarios!56:56,Scenarios!64:64) -> 0.5203171457 | AC179: =interpolate_look_up(AC1,Scenarios!56:56,Scenarios!64:64) -> 0.5203171457 | AD179: =interpolate_look_up(AD1,Scenarios!56:56,Scenarios!64:64) -> 0.5203171457 | AE179: =interpolate_look_up(AE1,Scenarios!56:56,Scenarios!64:64) -> 0.5203171457 | AF179: =interpolate_look_up(AF1,Scenarios!56:56,Scenarios!64:64) -> 0.5203171457 | AG179: =interpolate_look_up(AG1,Scenarios!56:56,Scenarios!64:64) -> 0.5203171457 | AH179: =interpolate_look_up(AH1,Scenarios!56:56,Scenarios!64:64) -> 0.5203171457 | AI179: =interpolate_look_up(AI1,Scenarios!56:56,Scenarios!64:64) -> 0.5203171457 | AJ179: =interpolate_look_up(AJ1,Scenarios!56:56,Scenarios!64:64) -> 0.5203171457 | AK179: =interpolate_look_up(AK1,Scenarios!56:56,Scenarios!64:64) -> 0.5203171457 | AL179: =interpolate_look_up(AL1,Scenarios!56:56,Scenarios!64:64) -> 0.5203171457 | AM179: =interpolate_look_up(AM1,Scenarios!56:56,Scenarios!64:64) -> 0.5203171457 | AN179: =interpolate_look_up(AN1,Scenarios!56:56,Scenarios!64:64) -> 0.5203171457
C180: Historic and Projected Cost of Goods Sold | E180: % | I180: =IF(I2,I178,I179) -> 0.7589048921 | J180: =IF(J2,J178,J179) -> 0.7599403579 | K180: 0.7530627951 | L180: 0.7171361694 | M180: 0.6840380379 | N180: 0.6518406976 | O180: 0.6109003233 | P180: 0.5893872208 | Q180: 0.5647847256 | R180: 0.5316526899 | S180: 0.5124268328 | T180: 0.5203171457 | U180: 0.5203171457 | V180: 0.5203171457 | W180: 0.5203171457 | X180: 0.5203171457 | Y180: 0.5203171457 | Z180: 0.5203171457 | AA180: 0.5203171457 | AB180: 0.5203171457 | AC180: 0.5203171457 | AD180: 0.5203171457 | AE180: 0.5203171457 | AF180: 0.5203171457 | AG180: 0.5203171457 | AH180: 0.5203171457 | AI180: 0.5203171457 | AJ180: 0.5203171457 | AK180: 0.5203171457 | AL180: 0.5203171457 | AM180: 0.5203171457 | AN180: 0.5203171457
C182: Cost of Goods Sold | E182: USD Million | I182: =IF(I2,I176,I170*I179) -> 18600 | J182: 25993 | K182: 36205 | L182: 43812 | M182: 50928 | N182: 58006 | O182: 65370 | P182: 80149 | Q182: 100456 | R182: 123815 | S182: 143747 | T182: 145960.4063 | U182: 145960.4063 | V182: 145960.4063 | W182: 145960.4063 | X182: 145960.4063 | Y182: 145960.4063 | Z182: 145960.4063 | AA182: 145960.4063 | AB182: 145960.4063 | AC182: 145960.4063 | AD182: 145960.4063 | AE182: 145960.4063 | AF182: 145960.4063 | AG182: 145960.4063 | AH182: 145960.4063 | AI182: 145960.4063 | AJ182: 145960.4063 | AK182: 145960.4063 | AL182: 145960.4063 | AM182: 145960.4063 | AN182: 145960.4063
C184: Fulfillment
D185: Historic Amount | I185: =I12 -> 2052 | J185: 2898 | K185: 4576 | L185: 6419 | M185: 8585 | N185: 10766 | O185: 13410 | P185: 17619 | Q185: 25249 | R185: 34027 | S185: 40232 | T185: 0 | U185: 0 | V185: 0 | W185: 0 | X185: 0 | Y185: 0 | Z185: 0 | AA185: 0 | AB185: 0 | AC185: 0 | AD185: 0 | AE185: 0 | AF185: 0 | AG185: 0 | AH185: 0 | AI185: 0 | AJ185: 0 | AK185: 0 | AL185: 0 | AM185: 0 | AN185: 0
D186: Percent of Revenues | I186: =I185/I170 -> 0.08372434616 | J186: 0.08472693252 | K186: 0.09518064771 | L186: 0.1050693205 | M186: 0.1153091925 | N186: 0.1209826044 | O186: 0.1253200755 | P186: 0.1295638554 | Q186: 0.1419551797 | R186: 0.1461094866 | S186: 0.1434183415 | T186: 0 | U186: 0 | V186: 0 | W186: 0 | X186: 0 | Y186: 0 | Z186: 0 | AA186: 0 | AB186: 0 | AC186: 0 | AD186: 0 | AE186: 0 | AF186: 0 | AG186: 0 | AH186: 0 | AI186: 0 | AJ186: 0 | AK186: 0 | AL186: 0 | AM186: 0 | AN186: 0
D187: Forecast Percent of Revenues | I187: =Scenarios!F71 -> 0.08372434616 | J187: =Scenarios!G71 -> 0.08472693252 | K187: =Scenarios!H71 -> 0.09518064771 | L187: =Scenarios!I71 -> 0.1050693205 | M187: =Scenarios!J71 -> 0.1153091925 | N187: =Scenarios!K71 -> 0.1209826044 | O187: =Scenarios!L71 -> 0.1253200755 | P187: =Scenarios!M71 -> 0.1295638554 | Q187: =Scenarios!N71 -> 0.1419551797 | R187: =Scenarios!O71 -> 0.1461094866 | S187: =Scenarios!P71 -> 0.1434183415 | T187: =Scenarios!Q71 -> 0.1434183415 | U187: =Scenarios!R71 -> 0.1434183415 | V187: =Scenarios!S71 -> 0.1434183415 | W187: =Scenarios!T71 -> 0.1434183415 | X187: =Scenarios!U71 -> 0.1434183415 | Y187: =Scenarios!V71 -> 0.1434183415 | Z187: =Scenarios!W71 -> 0.1434183415 | AA187: =Scenarios!X71 -> 0.1434183415 | AB187: =Scenarios!Y71 -> 0.1434183415 | AC187: =Scenarios!Z71 -> 0.1434183415 | AD187: =Scenarios!AA71 -> 0.1434183415 | AE187: =Scenarios!AB71 -> 0.1434183415 | AF187: =Scenarios!AC71 -> 0.1434183415 | AG187: =Scenarios!AD71 -> 0.1434183415 | AH187: =Scenarios!AE71 -> 0.1434183415 | AI187: =Scenarios!AF71 -> 0.1434183415 | AJ187: =Scenarios!AG71 -> 0.1434183415 | AK187: =Scenarios!AH71 -> 0.1434183415 | AL187: =Scenarios!AI71 -> 0.1434183415 | AM187: =Scenarios!AJ71 -> 0.1434183415 | AN187: =Scenarios!AK71 -> 0.1434183415
D188: Fullfilment Expenses | I188: =I187*I170 -> 2052 | J188: =J187*J170 -> 2898 | K188: 4576 | L188: 6419 | M188: 8585 | N188: 10766 | O188: 13410 | P188: 17619 | Q188: 25249 | R188: 34027 | S188: 40232 | T188: 40232 | U188: 40232 | V188: 40232 | W188: 40232 | X188: 40232 | Y188: 40232 | Z188: 40232 | AA188: 40232 | AB188: 40232 | AC188: 40232 | AD188: 40232 | AE188: 40232 | AF188: 40232 | AG188: 40232 | AH188: 40232 | AI188: 40232 | AJ188: 40232 | AK188: 40232 | AL188: 40232 | AM188: 40232 | AN188: 40232
C190: Marketing
D191: Historic Amount | I191: =I13 -> 680 | J191: =J13 -> 1029 | K191: 1630 | L191: 2408 | M191: 3133 | N191: 4332 | O191: 5254 | P191: 7233 | Q191: 10069 | R191: 13814 | S191: 18878 | T191: 0 | U191: 0 | V191: 0 | W191: 0 | X191: 0 | Y191: 0 | Z191: 0 | AA191: 0 | AB191: 0 | AC191: 0 | AD191: 0 | AE191: 0 | AF191: 0 | AG191: 0 | AH191: 0 | AI191: 0 | AJ191: 0 | AK191: 0 | AL191: 0 | AM191: 0 | AN191: =AN13 -> 0
D192: Percent of Revenues | I192: =I191/I170 -> 0.02774491003 | J192: 0.03008420068 | K192: 0.03390394575 | L192: 0.03941531763 | M192: 0.04208080374 | N192: 0.048680721 | O192: 0.04910005046 | P192: 0.05318890776 | Q192: 0.05661003227 | R192: 0.05931632079 | S192: 0.06729596966 | T192: 0 | U192: 0 | V192: 0 | W192: 0 | X192: 0 | Y192: 0 | Z192: 0 | AA192: 0 | AB192: 0 | AC192: 0 | AD192: 0 | AE192: 0 | AF192: 0 | AG192: 0 | AH192: 0 | AI192: 0 | AJ192: 0 | AK192: 0 | AL192: 0 | AM192: 0 | AN192: 0
D193: Forecast Percent of Revenues | I193: =Scenarios!F72 -> 0.02774491003 | J193: =Scenarios!G72 -> 0.03008420068 | K193: =Scenarios!H72 -> 0.03390394575 | L193: =Scenarios!I72 -> 0.03941531763 | M193: =Scenarios!J72 -> 0.04208080374 | N193: =Scenarios!K72 -> 0.048680721 | O193: =Scenarios!L72 -> 0.04910005046 | P193: =Scenarios!M72 -> 0.05318890776 | Q193: =Scenarios!N72 -> 0.05661003227 | R193: =Scenarios!O72 -> 0.05931632079 | S193: =Scenarios!P72 -> 0.06729596966 | T193: =Scenarios!Q72 -> 0.06729596966 | U193: =Scenarios!R72 -> 0.06729596966 | V193: =Scenarios!S72 -> 0.06729596966 | W193: =Scenarios!T72 -> 0.06729596966 | X193: =Scenarios!U72 -> 0.06729596966 | Y193: =Scenarios!V72 -> 0.06729596966 | Z193: =Scenarios!W72 -> 0.06729596966 | AA193: =Scenarios!X72 -> 0.06729596966 | AB193: =Scenarios!Y72 -> 0.06729596966 | AC193: =Scenarios!Z72 -> 0.06729596966 | AD193: =Scenarios!AA72 -> 0.06729596966 | AE193: =Scenarios!AB72 -> 0.06729596966 | AF193: =Scenarios!AC72 -> 0.06729596966 | AG193: =Scenarios!AD72 -> 0.06729596966 | AH193: =Scenarios!AE72 -> 0.06729596966 | AI193: =Scenarios!AF72 -> 0.06729596966 | AJ193: =Scenarios!AG72 -> 0.06729596966 | AK193: =Scenarios!AH72 -> 0.06729596966 | AL193: =Scenarios!AI72 -> 0.06729596966 | AM193: =Scenarios!AJ72 -> 0.06729596966 | AN193: =Scenarios!AK72 -> 0.06729596966
D194: Marketing | I194: =I193*I170 -> 680 | J194: =J193*J170 -> 1029 | K194: 1630 | L194: 2408 | M194: 3133 | N194: 4332 | O194: 5254 | P194: 7233 | Q194: 10069 | R194: 13814 | S194: 18878 | T194: 18878 | U194: 18878 | V194: 18878 | W194: 18878 | X194: 18878 | Y194: 18878 | Z194: 18878 | AA194: 18878 | AB194: 18878 | AC194: 18878 | AD194: 18878 | AE194: 18878 | AF194: 18878 | AG194: 18878 | AH194: 18878 | AI194: 18878 | AJ194: 18878 | AK194: 18878 | AL194: 18878 | AM194: 18878 | AN194: 18878
C196: General and administrative
D197: Historic Amount | I197: =I14 -> 328 | J197: =J14 -> 470 | K197: 658 | L197: 896 | M197: 1129 | N197: 1552 | O197: 1747 | P197: 2432 | Q197: 3674 | R197: 4336 | S197: 5203 | T197: 0 | U197: 0 | V197: 0 | W197: 0 | X197: 0 | Y197: 0 | Z197: 0 | AA197: 0 | AB197: 0 | AC197: 0 | AD197: 0 | AE197: 0 | AF197: 0 | AG197: 0 | AH197: 0 | AI197: 0 | AJ197: 0 | AK197: 0 | AL197: 0 | AM197: 0 | AN197: =AN14 -> 0
D198: Percent of Revenues | I198: =I197/I170 -> 0.01338283896 | J198: 0.01374108291 | K198: 0.0136863781 | L198: 0.0146661647 | M198: 0.0151641326 | N198: 0.01744055378 | O198: 0.01632618732 | P198: 0.01788406245 | Q198: 0.02065599946 | R198: 0.01861847162 | S198: 0.0185475649 | T198: 0 | U198: 0 | V198: 0 | W198: 0 | X198: 0 | Y198: 0 | Z198: 0 | AA198: 0 | AB198: 0 | AC198: 0 | AD198: 0 | AE198: 0 | AF198: 0 | AG198: 0 | AH198: 0 | AI198: 0 | AJ198: 0 | AK198: 0 | AL198: 0 | AM198: 0 | AN198: 0
D199: Forecast Percent of Revenues | I199: =Scenarios!F73 -> 0.01338283896 | J199: =Scenarios!G73 -> 0.01374108291 | K199: =Scenarios!H73 -> 0.0136863781 | L199: =Scenarios!I73 -> 0.0146661647 | M199: =Scenarios!J73 -> 0.0151641326 | N199: =Scenarios!K73 -> 0.01744055378 | O199: =Scenarios!L73 -> 0.01632618732 | P199: =Scenarios!M73 -> 0.01788406245 | Q199: =Scenarios!N73 -> 0.02065599946 | R199: =Scenarios!O73 -> 0.01861847162 | S199: =Scenarios!P73 -> 0.0185475649 | T199: =Scenarios!Q73 -> 0.0185475649 | U199: =Scenarios!R73 -> 0.0185475649 | V199: =Scenarios!S73 -> 0.0185475649 | W199: =Scenarios!T73 -> 0.0185475649 | X199: =Scenarios!U73 -> 0.0185475649 | Y199: =Scenarios!V73 -> 0.0185475649 | Z199: =Scenarios!W73 -> 0.0185475649 | AA199: =Scenarios!X73 -> 0.0185475649 | AB199: =Scenarios!Y73 -> 0.0185475649 | AC199: =Scenarios!Z73 -> 0.0185475649 | AD199: =Scenarios!AA73 -> 0.0185475649 | AE199: =Scenarios!AB73 -> 0.0185475649 | AF199: =Scenarios!AC73 -> 0.0185475649 | AG199: =Scenarios!AD73 -> 0.0185475649 | AH199: =Scenarios!AE73 -> 0.0185475649 | AI199: =Scenarios!AF73 -> 0.0185475649 | AJ199: =Scenarios!AG73 -> 0.0185475649 | AK199: =Scenarios!AH73 -> 0.0185475649 | AL199: =Scenarios!AI73 -> 0.0185475649 | AM199: =Scenarios!AJ73 -> 0.0185475649 | AN199: =Scenarios!AK73 -> 0.0185475649
D200: General and Administrative | I200: =I199*I170 -> 328 | J200: =J199*J170 -> 470 | K200: 658 | L200: 896 | M200: 1129 | N200: 1552 | O200: 1747 | P200: 2432 | Q200: 3674 | R200: 4336 | S200: 5203 | T200: 5203 | U200: 5203 | V200: 5203 | W200: 5203 | X200: 5203 | Y200: 5203 | Z200: 5203 | AA200: 5203 | AB200: 5203 | AC200: 5203 | AD200: 5203 | AE200: 5203 | AF200: 5203 | AG200: 5203 | AH200: 5203 | AI200: 5203 | AJ200: 5203 | AK200: 5203 | AL200: 5203 | AM200: 5203 | AN200: 5203
C202: Technology and content
D203: Historic Amount | I203: =I15 -> 1240 | J203: =J15 -> 1734 | K203: 2909 | L203: 4564 | M203: 6565 | N203: 9275 | O203: 12540 | P203: 16085 | Q203: 22620 | R203: 28837 | S203: 35931 | T203: 0 | U203: 0 | V203: 0 | W203: 0 | X203: 0 | Y203: 0 | Z203: 0 | AA203: 0 | AB203: 0 | AC203: 0 | AD203: 0 | AE203: 0 | AF203: 0 | AG203: 0 | AH203: 0 | AI203: 0 | AJ203: 0 | AK203: 0 | AL203: 0 | AM203: 0 | AN203: =AN15 -> 0
D204: Percent of Revenues | I204: =I203/I170 -> 0.05059365947 | J204: 0.05069582505 | K204: 0.06050710319 | L204: 0.07470577644 | M204: 0.08817761779 | N204: 0.1042275363 | O204: 0.1171896903 | P204: 0.1182833653 | Q204: 0.1271743897 | R204: 0.1238240005 | S204: 0.1280862107 | T204: 0 | U204: 0 | V204: 0 | W204: 0 | X204: 0 | Y204: 0 | Z204: 0 | AA204: 0 | AB204: 0 | AC204: 0 | AD204: 0 | AE204: 0 | AF204: 0 | AG204: 0 | AH204: 0 | AI204: 0 | AJ204: 0 | AK204: 0 | AL204: 0 | AM204: 0 | AN204: 0
D205: Forecast Percent of Revenues | I205: =Scenarios!F74 -> 0.05059365947 | J205: =Scenarios!G74 -> 0.05069582505 | K205: =Scenarios!H74 -> 0.06050710319 | L205: =Scenarios!I74 -> 0.07470577644 | M205: =Scenarios!J74 -> 0.08817761779 | N205: =Scenarios!K74 -> 0.1042275363 | O205: =Scenarios!L74 -> 0.1171896903 | P205: =Scenarios!M74 -> 0.1182833653 | Q205: =Scenarios!N74 -> 0.1271743897 | R205: =Scenarios!O74 -> 0.1238240005 | S205: =Scenarios!P74 -> 0.1280862107 | T205: =Scenarios!Q74 -> 0.1280862107 | U205: =Scenarios!R74 -> 0.1280862107 | V205: =Scenarios!S74 -> 0.1280862107 | W205: =Scenarios!T74 -> 0.1280862107 | X205: =Scenarios!U74 -> 0.1280862107 | Y205: =Scenarios!V74 -> 0.1280862107 | Z205: =Scenarios!W74 -> 0.1280862107 | AA205: =Scenarios!X74 -> 0.1280862107 | AB205: =Scenarios!Y74 -> 0.1280862107 | AC205: =Scenarios!Z74 -> 0.1280862107 | AD205: =Scenarios!AA74 -> 0.1280862107 | AE205: =Scenarios!AB74 -> 0.1280862107 | AF205: =Scenarios!AC74 -> 0.1280862107 | AG205: =Scenarios!AD74 -> 0.1280862107 | AH205: =Scenarios!AE74 -> 0.1280862107 | AI205: =Scenarios!AF74 -> 0.1280862107 | AJ205: =Scenarios!AG74 -> 0.1280862107 | AK205: =Scenarios!AH74 -> 0.1280862107 | AL205: =Scenarios!AI74 -> 0.1280862107 | AM205: =Scenarios!AJ74 -> 0.1280862107 | AN205: =Scenarios!AK74 -> 0.1280862107
D206: Technology and Content | I206: =I205*I170 -> 1240 | J206: =J205*J170 -> 1734 | K206: 2909 | L206: 4564 | M206: 6565 | N206: 9275 | O206: 12540 | P206: 16085 | Q206: 22620 | R206: 28837 | S206: 35931 | T206: 35931 | U206: 35931 | V206: 35931 | W206: 35931 | X206: 35931 | Y206: 35931 | Z206: 35931 | AA206: 35931 | AB206: 35931 | AC206: 35931 | AD206: 35931 | AE206: 35931 | AF206: 35931 | AG206: 35931 | AH206: 35931 | AI206: 35931 | AJ206: 35931 | AK206: 35931 | AL206: 35931 | AM206: 35931 | AN206: 35931
C208: Other operating expense (income), net
D209: Historic Amount | I209: =I16 -> 102 | J209: =J16 -> 106 | K209: 154 | L209: 159 | M209: 114 | N209: 133 | O209: 171 | P209: 167 | Q209: 214 | R209: 296 | S209: 201 | T209: 0 | U209: 0 | V209: 0 | W209: 0 | X209: 0 | Y209: 0 | Z209: 0 | AA209: 0 | AB209: 0 | AC209: 0 | AD209: 0 | AE209: 0 | AF209: 0 | AG209: 0 | AH209: 0 | AI209: 0 | AJ209: 0 | AK209: 0 | AL209: 0 | AM209: 0 | AN209: =AN16 -> 0
D210: Percent of Revenues | I210: =I209/I170 -> 0.004161736505 | J210: =J209/J170 -> 0.003099052742 | K210: 0.003203194875 | L210: 0.002602589495 | M210: 0.001531187879 | N210: 0.001494583539 | O210: 0.001598041231 | P210: 0.001228058564 | Q210: 0.001203152935 | R210: 0.001271002675 | S210: 0.0007165213424 | T210: 0 | U210: 0 | V210: 0 | W210: 0 | X210: 0 | Y210: 0 | Z210: 0 | AA210: 0 | AB210: 0 | AC210: 0 | AD210: 0 | AE210: 0 | AF210: 0 | AG210: 0 | AH210: 0 | AI210: 0 | AJ210: 0 | AK210: 0 | AL210: 0 | AM210: 0 | AN210: 0
D211: Other Operating Expense | I211: =IF(I2,I209,H211) -> 102 | J211: =IF(J2,J209,I211) -> 106 | K211: 154 | L211: 159 | M211: 114 | N211: 133 | O211: 171 | P211: 167 | Q211: 214 | R211: 296 | S211: 201 | T211: 201 | U211: 201 | V211: 201 | W211: 201 | X211: 201 | Y211: 201 | Z211: 201 | AA211: 201 | AB211: 201 | AC211: 201 | AD211: 201 | AE211: 201 | AF211: 201 | AG211: 201 | AH211: 201 | AI211: 201 | AJ211: 201 | AK211: 201 | AL211: 201 | AM211: 201 | AN211: =IF(AN2,AN209,AM211) -> 201
D213: Total Operating Expense | I213: =I211+I206+I200+I194+I188+I182 -> 23002 | J213: =J211+J206+J200+J194+J188+J182 -> 32230 | K213: 46132 | L213: 58258 | M213: 70454 | N213: 84064 | O213: 98492 | P213: 123685 | Q213: 162282 | R213: 205125 | S213: 244192 | T213: 246405.4063 | U213: 246405.4063 | V213: 246405.4063 | W213: 246405.4063 | X213: 246405.4063 | Y213: 246405.4063 | Z213: 246405.4063 | AA213: 246405.4063 | AB213: 246405.4063 | AC213: 246405.4063 | AD213: 246405.4063 | AE213: 246405.4063 | AF213: 246405.4063 | AG213: 246405.4063 | AH213: 246405.4063 | AI213: 246405.4063 | AJ213: 246405.4063 | AK213: 246405.4063 | AL213: 246405.4063 | AM213: 246405.4063 | AN213: =AN211+AN206+AN200+AN194+AN188+AN182 -> 246405.4063
B215: Capital Expenditures and Depreciation
C216: Depreciation Expense
D217: Historic Expense | I217: =I73 -> 378 | J217: =J73 -> 568 | K217: 1083 | L217: 2159 | M217: 3253 | N217: 4746 | O217: 6281 | P217: 8116 | Q217: 11478 | R217: 15341 | S217: 21789 | T217: 0 | U217: 0 | V217: 0 | W217: 0 | X217: 0 | Y217: 0 | Z217: 0 | AA217: 0 | AB217: 0 | AC217: 0 | AD217: 0 | AE217: 0 | AF217: 0 | AG217: 0 | AH217: 0 | AI217: 0 | AJ217: 0 | AK217: 0 | AL217: 0 | AM217: 0 | AN217: =AN73 -> 0
D218: Net Plant | H218: =H42 -> 854 | I218: =I42 -> 1290 | J218: 2414 | K218: 4417 | L218: 7060 | M218: 10949 | N218: 16967 | O218: 21838 | P218: 29114 | Q218: 48866 | R218: 61797 | S218: 72705 | T218: 0 | U218: 0 | V218: 0 | W218: 0 | X218: 0 | Y218: 0 | Z218: 0 | AA218: 0 | AB218: 0 | AC218: 0 | AD218: 0 | AE218: 0 | AF218: 0 | AG218: 0 | AH218: 0 | AI218: 0 | AJ218: 0 | AK218: 0 | AL218: 0 | AM218: 0 | AN218: =AN42 -> 0
D219: Interpolated Depreciation | I219: =interpolate_look_up(I1,Scenarios!20:20,Scenarios!50:50) -> 0 | J219: =interpolate_look_up(J1,Scenarios!20:20,Scenarios!50:50) -> 0 | K219: =interpolate_look_up(K1,Scenarios!20:20,Scenarios!50:50) -> 0 | L219: =interpolate_look_up(L1,Scenarios!20:20,Scenarios!50:50) -> 0 | M219: =interpolate_look_up(M1,Scenarios!20:20,Scenarios!50:50) -> 0 | N219: =interpolate_look_up(N1,Scenarios!20:20,Scenarios!50:50) -> 0 | O219: =interpolate_look_up(O1,Scenarios!20:20,Scenarios!50:50) -> 0 | P219: =interpolate_look_up(P1,Scenarios!20:20,Scenarios!50:50) -> 0 | Q219: =interpolate_look_up(Q1,Scenarios!20:20,Scenarios!50:50) -> 0 | R219: =interpolate_look_up(R1,Scenarios!20:20,Scenarios!50:50) -> 0 | S219: =interpolate_look_up(S1,Scenarios!20:20,Scenarios!50:50) -> 0 | T219: =interpolate_look_up(T1,Scenarios!20:20,Scenarios!50:50) -> FALSE | U219: =interpolate_look_up(U1,Scenarios!20:20,Scenarios!50:50) -> 0 | V219: =interpolate_look_up(V1,Scenarios!20:20,Scenarios!50:50) -> 0 | W219: =interpolate_look_up(W1,Scenarios!20:20,Scenarios!50:50) -> 0 | X219: =interpolate_look_up(X1,Scenarios!20:20,Scenarios!50:50) -> 0 | Y219: =interpolate_look_up(Y1,Scenarios!20:20,Scenarios!50:50) -> FALSE | Z219: =interpolate_look_up(Z1,Scenarios!20:20,Scenarios!50:50) -> 0 | AA219: =interpolate_look_up(AA1,Scenarios!20:20,Scenarios!50:50) -> 0 | AB219: =interpolate_look_up(AB1,Scenarios!20:20,Scenarios!50:50) -> 0 | AC219: =interpolate_look_up(AC1,Scenarios!20:20,Scenarios!50:50) -> 0 | AD219: =interpolate_look_up(AD1,Scenarios!20:20,Scenarios!50:50) -> FALSE | AE219: =interpolate_look_up(AE1,Scenarios!20:20,Scenarios!50:50) -> 0 | AF219: =interpolate_look_up(AF1,Scenarios!20:20,Scenarios!50:50) -> 0 | AG219: =interpolate_look_up(AG1,Scenarios!20:20,Scenarios!50:50) -> 0 | AH219: =interpolate_look_up(AH1,Scenarios!20:20,Scenarios!50:50) -> 0 | AI219: =interpolate_look_up(AI1,Scenarios!20:20,Scenarios!50:50) -> FALSE | AJ219: =interpolate_look_up(AJ1,Scenarios!20:20,Scenarios!50:50) -> FALSE | AK219: =interpolate_look_up(AK1,Scenarios!20:20,Scenarios!50:50) -> FALSE | AL219: =interpolate_look_up(AL1,Scenarios!20:20,Scenarios!50:50) -> FALSE | AM219: =interpolate_look_up(AM1,Scenarios!20:20,Scenarios!50:50) -> FALSE | AN219: =interpolate_look_up(AN1,Scenarios!20:20,Scenarios!50:50) -> FALSE
D220: Depreciation as Percent of Net Plant | F220: =LOOKUP(F2,1:1,220:220) -> 0.3525899316 | I220: =IF(I2,I217/H218,I219) -> 0.4426229508 | J220: =IF(J2,J217/I218,J219) -> 0.4403100775 | K220: 0.4486329743 | L220: 0.4887932986 | M220: 0.4607648725 | N220: 0.4334642433 | O220: 0.3701891908 | P220: 0.3716457551 | Q220: 0.3942433194 | R220: 0.3139401629 | S220: 0.3525899316 | T220: FALSE | U220: 0 | V220: 0 | W220: 0 | X220: 0 | Y220: FALSE | Z220: 0 | AA220: 0 | AB220: 0 | AC220: 0 | AD220: FALSE | AE220: 0 | AF220: 0 | AG220: 0 | AH220: 0 | AI220: FALSE | AJ220: FALSE | AK220: FALSE | AL220: FALSE | AM220: FALSE | AN220: FALSE
C222: Capital Expenditures
D223: Purchases of property and equipment | I223: =-I92 -> 373 | J223: =-J92 -> 979 | K223: 1811 | L223: 3785 | M223: 3444 | N223: 4893 | O223: 4589 | P223: 7804 | Q223: 11955 | R223: 13427 | S223: 16861 | T223: 0 | U223: 0 | V223: 0 | W223: 0 | X223: 0 | Y223: 0 | Z223: 0 | AA223: 0 | AB223: 0 | AC223: 0 | AD223: 0 | AE223: 0 | AF223: 0 | AG223: 0 | AH223: 0 | AI223: 0 | AJ223: 0 | AK223: 0 | AL223: 0 | AM223: 0 | AN223: =-AN92 -> 0
D224: Acquisitions, net of cash acquired, and other | I224: =-I93 -> 40 | J224: =-J93 -> 352 | K224: 705 | L224: 745 | M224: 312 | N224: 979 | O224: 795 | P224: 116 | Q224: 13972 | R224: 2186 | S224: 2461 | T224: 0 | U224: 0 | V224: 0 | W224: 0 | X224: 0 | Y224: 0 | Z224: 0 | AA224: 0 | AB224: 0 | AC224: 0 | AD224: 0 | AE224: 0 | AF224: 0 | AG224: 0 | AH224: 0 | AI224: 0 | AJ224: 0 | AK224: 0 | AL224: 0 | AM224: 0 | AN224: =-AN93 -> 0
D225: Less: Sales | I225: =I91 -> 0 | J225: =J91 -> 0 | K225: 0 | L225: 0 | M225: 0 | N225: 0 | O225: 0 | P225: 1067 | Q225: 1897 | R225: 2104 | S225: 4172 | T225: 0 | U225: 0 | V225: 0 | W225: 0 | X225: 0 | Y225: 0 | Z225: 0 | AA225: 0 | AB225: 0 | AC225: 0 | AD225: 0 | AE225: 0 | AF225: 0 | AG225: 0 | AH225: 0 | AI225: 0 | AJ225: 0 | AK225: 0 | AL225: 0 | AM225: 0 | AN225: =AN91 -> 0
D226: Net Capital Expenditures | I226: =I223+I224-I225 -> 413 | J226: =J223+J224-J225 -> 1331 | K226: 2516 | L226: 4530 | M226: 3756 | N226: 5872 | O226: 5384 | P226: 6853 | Q226: 24030 | R226: 13509 | S226: 15150 | T226: 0 | U226: 0 | V226: 0 | W226: 0 | X226: 0 | Y226: 0 | Z226: 0 | AA226: 0 | AB226: 0 | AC226: 0 | AD226: 0 | AE226: 0 | AF226: 0 | AG226: 0 | AH226: 0 | AI226: 0 | AJ226: 0 | AK226: 0 | AL226: 0 | AM226: 0 | AN226: 0
D228: Change in Net Plant | I228: =I218-H218 -> 436 | J228: =J218-I218 -> 1124 | K228: 2003 | L228: 2643 | M228: 3889 | N228: 6018 | O228: 4871 | P228: 7276 | Q228: 19752 | R228: 12931 | S228: 10908 | T228: -72705 | U228: 0 | V228: 0 | W228: 0 | X228: 0 | Y228: 0 | Z228: 0 | AA228: 0 | AB228: 0 | AC228: 0 | AD228: 0 | AE228: 0 | AF228: 0 | AG228: 0 | AH228: 0 | AI228: 0 | AJ228: 0 | AK228: 0 | AL228: 0 | AM228: 0 | AN228: =AN218-AM218 -> 0
D229: Plus: Depreciation | I229: =I217 -> 378 | J229: =J217 -> 568 | K229: 1083 | L229: 2159 | M229: 3253 | N229: 4746 | O229: 6281 | P229: 8116 | Q229: 11478 | R229: 15341 | S229: 21789 | T229: 0 | U229: 0 | V229: 0 | W229: 0 | X229: 0 | Y229: 0 | Z229: 0 | AA229: 0 | AB229: 0 | AC229: 0 | AD229: 0 | AE229: 0 | AF229: 0 | AG229: 0 | AH229: 0 | AI229: 0 | AJ229: 0 | AK229: 0 | AL229: 0 | AM229: 0 | AN229: =AN217 -> 0
D230: Implied Capital Expenditures from Balance Sheet | I230: =IF(I2,SUM(I228:I229)) -> 814 | J230: =IF(J2,SUM(J228:J229)) -> 1692 | K230: 3086 | L230: 4802 | M230: 7142 | N230: 10764 | O230: 11152 | P230: 15392 | Q230: 31230 | R230: 28272 | S230: 32697 | T230: FALSE | U230: FALSE | V230: FALSE | W230: FALSE | X230: FALSE | Y230: FALSE | Z230: FALSE | AA230: FALSE | AB230: FALSE | AC230: FALSE | AD230: FALSE | AE230: FALSE | AF230: FALSE | AG230: FALSE | AH230: FALSE | AI230: FALSE | AJ230: FALSE | AK230: FALSE | AL230: FALSE | AM230: FALSE | AN230: FALSE
D232: Capital Expenditures and Perecent of Sales | I232: =IF(I2,I230/I170,I240/I170) -> 0.03321228936 | J232: =IF(J2,J230/J170,J240/J170) -> 0.04946789849 | K232: 0.0641886973 | L232: 0.07860147644 | M232: 0.0959275775 | N232: 0.1209601295 | O232: 0.104218455 | P232: 0.11318729 | Q232: 0.1755816176 | R232: 0.1213979312 | S232: 0.1165577031 | T232: 0 | U232: 0 | V232: 0 | W232: 0 | X232: 0 | Y232: 0 | Z232: 0 | AA232: 0 | AB232: 0 | AC232: 0 | AD232: 0 | AE232: 0 | AF232: 0 | AG232: 0 | AH232: 0 | AI232: 0 | AJ232: 0 | AK232: 0 | AL232: 0 | AM232: 0 | AN232: 0
D233: Interpolated Cap Exp as Percent of Depreciation | F233: =Summary!E7 -> 1 | I233: =LOOKUP(I1,Scenarios!20:20,Scenarios!40:40)*$F$233 -> 0 | J233: =LOOKUP(J1,Scenarios!20:20,Scenarios!40:40)*$F$233 -> 0 | K233: =LOOKUP(K1,Scenarios!20:20,Scenarios!40:40)*$F$233 -> 0 | L233: =LOOKUP(L1,Scenarios!20:20,Scenarios!40:40)*$F$233 -> 0 | M233: =LOOKUP(M1,Scenarios!20:20,Scenarios!40:40)*$F$233 -> 0 | N233: =LOOKUP(N1,Scenarios!20:20,Scenarios!40:40)*$F$233 -> 0 | O233: =LOOKUP(O1,Scenarios!20:20,Scenarios!40:40)*$F$233 -> 0 | P233: =LOOKUP(P1,Scenarios!20:20,Scenarios!40:40)*$F$233 -> 0 | Q233: =LOOKUP(Q1,Scenarios!20:20,Scenarios!40:40)*$F$233 -> 0 | R233: =LOOKUP(R1,Scenarios!20:20,Scenarios!40:40)*$F$233 -> 0 | S233: =LOOKUP(S1,Scenarios!20:20,Scenarios!40:40)*$F$233 -> 0 | T233: =LOOKUP(T1,Scenarios!20:20,Scenarios!40:40)*$F$233 -> 0 | U233: =LOOKUP(U1,Scenarios!20:20,Scenarios!40:40)*$F$233 -> 0 | V233: =LOOKUP(V1,Scenarios!20:20,Scenarios!40:40)*$F$233 -> 0 | W233: =LOOKUP(W1,Scenarios!20:20,Scenarios!40:40)*$F$233 -> 0 | X233: =LOOKUP(X1,Scenarios!20:20,Scenarios!40:40)*$F$233 -> 0 | Y233: =LOOKUP(Y1,Scenarios!20:20,Scenarios!40:40)*$F$233 -> 0 | Z233: =LOOKUP(Z1,Scenarios!20:20,Scenarios!40:40)*$F$233 -> 0 | AA233: =LOOKUP(AA1,Scenarios!20:20,Scenarios!40:40)*$F$233 -> 0 | AB233: =LOOKUP(AB1,Scenarios!20:20,Scenarios!40:40)*$F$233 -> 0 | AC233: =LOOKUP(AC1,Scenarios!20:20,Scenarios!40:40)*$F$233 -> 0 | AD233: =LOOKUP(AD1,Scenarios!20:20,Scenarios!40:40)*$F$233 -> 0 | AE233: =LOOKUP(AE1,Scenarios!20:20,Scenarios!40:40)*$F$233 -> 0 | AF233: =LOOKUP(AF1,Scenarios!20:20,Scenarios!40:40)*$F$233 -> 0 | AG233: =LOOKUP(AG1,Scenarios!20:20,Scenarios!40:40)*$F$233 -> 0 | AH233: =LOOKUP(AH1,Scenarios!20:20,Scenarios!40:40)*$F$233 -> 0 | AI233: =LOOKUP(AI1,Scenarios!20:20,Scenarios!40:40)*$F$233 -> 0 | AJ233: =LOOKUP(AJ1,Scenarios!20:20,Scenarios!40:40)*$F$233 -> 0 | AK233: =LOOKUP(AK1,Scenarios!20:20,Scenarios!40:40)*$F$233 -> 0 | AL233: =LOOKUP(AL1,Scenarios!20:20,Scenarios!40:40)*$F$233 -> 0 | AM233: =LOOKUP(AM1,Scenarios!20:20,Scenarios!40:40)*$F$233 -> 0 | AN233: =LOOKUP(AN1,Scenarios!20:20,Scenarios!40:40)*$F$233 -> 0
D234: Capital Expenditures as Percent of Depreciation | I234: =IF(I2,I230/I217,I233) -> 2.153439153 | J234: =IF(J2,J230/J217,J233) -> 2.978873239 | K234: 2.849492151 | L234: 2.22417786 | M234: 2.195511835 | N234: 2.268015171 | O234: 1.775513453 | P234: 1.896500739 | Q234: 2.720857292 | R234: 1.842904635 | S234: 1.500619579 | T234: 0 | U234: 0 | V234: 0 | W234: 0 | X234: 0 | Y234: 0 | Z234: 0 | AA234: 0 | AB234: 0 | AC234: 0 | AD234: 0 | AE234: 0 | AF234: 0 | AG234: 0 | AH234: 0 | AI234: 0 | AJ234: 0 | AK234: 0 | AL234: 0 | AM234: 0 | AN234: 0
... 89 more rows

Sheet Valuation
B1: Timeline
C2: Year | E2: Cap Exp | F2: =Summary!E7 -> 1 | I2: 2020 | J2: 2021 | K2: 2022 | L2: 2023 | M2: 2024 | N2: 2025 | O2: 2026 | P2: 2027 | Q2: 2028 | R2: 2029 | S2: 2030 | T2: 2031 | U2: 2032 | V2: 2033 | W2: 2034 | X2: 2035 | Y2: 2036 | Z2: 2037
C3: Explicit Period | E3: =Scenarios!F5 -> 2026 | I3: =I2<=$E$3 -> TRUE | J3: =J2<=$E$3 -> TRUE | K3: TRUE | L3: TRUE | M3: TRUE | N3: TRUE | O3: TRUE | P3: FALSE | Q3: FALSE | R3: FALSE | S3: FALSE | T3: FALSE | U3: FALSE | V3: FALSE | W3: FALSE | X3: FALSE | Y3: FALSE | Z3: FALSE
C4: Terminal Period | E4: =Scenarios!F5 -> 2026 | I4: =I2=$E$4 -> FALSE | J4: =J2=$E$4 -> FALSE | K4: FALSE | L4: FALSE | M4: FALSE | N4: FALSE | O4: TRUE | P4: FALSE | Q4: FALSE | R4: FALSE | S4: FALSE | T4: FALSE | U4: FALSE | V4: FALSE | W4: FALSE | X4: FALSE | Y4: FALSE | Z4: FALSE
C6: WACC | E6: =Scenarios!$F$7 -> 0.09
C7: Growth Rate | E7: =Scenarios!$F$8 -> 0.04
C8: Terminal EV/EBITDA | E8: =Scenarios!F11 -> 12
C10: Terminal ROIC | E10: =Scenarios!F9 -> 0.18
B12: Transferred Variables
C13: EBITDA | I13: =LOOKUP(I2,'Amazon Financial Model'!1:1,'Amazon Financial Model'!306:306) -> 0 | J13: =LOOKUP(J2,'Amazon Financial Model'!1:1,'Amazon Financial Model'!306:306) -> 0 | K13: =LOOKUP(K2,'Amazon Financial Model'!1:1,'Amazon Financial Model'!306:306) -> 0 | L13: =LOOKUP(L2,'Amazon Financial Model'!1:1,'Amazon Financial Model'!306:306) -> 0 | M13: =LOOKUP(M2,'Amazon Financial Model'!1:1,'Amazon Financial Model'!306:306) -> 0 | N13: =LOOKUP(N2,'Amazon Financial Model'!1:1,'Amazon Financial Model'!306:306) -> 0 | O13: =LOOKUP(O2,'Amazon Financial Model'!1:1,'Amazon Financial Model'!306:306) -> 0 | P13: =LOOKUP(P2,'Amazon Financial Model'!1:1,'Amazon Financial Model'!306:306) -> 0 | Q13: =LOOKUP(Q2,'Amazon Financial Model'!1:1,'Amazon Financial Model'!306:306) -> 0 | R13: =LOOKUP(R2,'Amazon Financial Model'!1:1,'Amazon Financial Model'!306:306) -> 0 | S13: =LOOKUP(S2,'Amazon Financial Model'!1:1,'Amazon Financial Model'!306:306) -> 0 | T13: =LOOKUP(T2,'Amazon Financial Model'!1:1,'Amazon Financial Model'!306:306) -> 0 | U13: =LOOKUP(U2,'Amazon Financial Model'!1:1,'Amazon Financial Model'!306:306) -> 0 | V13: =LOOKUP(V2,'Amazon Financial Model'!1:1,'Amazon Financial Model'!306:306) -> 0 | W13: =LOOKUP(W2,'Amazon Financial Model'!1:1,'Amazon Financial Model'!306:306) -> 0 | X13: =LOOKUP(X2,'Amazon Financial Model'!1:1,'Amazon Financial Model'!306:306) -> 0 | Y13: =LOOKUP(Y2,'Amazon Financial Model'!1:1,'Amazon Financial Model'!306:306) -> 0 | Z13: =LOOKUP(Z2,'Amazon Financial Model'!1:1,'Amazon Financial Model'!306:306) -> 0
C14: Capital Expenditures | I14: =LOOKUP(I2,'Amazon Financial Model'!1:1,'Amazon Financial Model'!307:307) -> 0 | J14: =LOOKUP(J2,'Amazon Financial Model'!1:1,'Amazon Financial Model'!307:307) -> 0 | K14: =LOOKUP(K2,'Amazon Financial Model'!1:1,'Amazon Financial Model'!307:307) -> 0 | L14: =LOOKUP(L2,'Amazon Financial Model'!1:1,'Amazon Financial Model'!307:307) -> 0 | M14: =LOOKUP(M2,'Amazon Financial Model'!1:1,'Amazon Financial Model'!307:307) -> 0 | N14: =LOOKUP(N2,'Amazon Financial Model'!1:1,'Amazon Financial Model'!307:307) -> 0 | O14: =LOOKUP(O2,'Amazon Financial Model'!1:1,'Amazon Financial Model'!307:307) -> 0 | P14: =LOOKUP(P2,'Amazon Financial Model'!1:1,'Amazon Financial Model'!307:307) -> 0 | Q14: =LOOKUP(Q2,'Amazon Financial Model'!1:1,'Amazon Financial Model'!307:307) -> 0 | R14: =LOOKUP(R2,'Amazon Financial Model'!1:1,'Amazon Financial Model'!307:307) -> 0 | S14: =LOOKUP(S2,'Amazon Financial Model'!1:1,'Amazon Financial Model'!307:307) -> 0 | T14: =LOOKUP(T2,'Amazon Financial Model'!1:1,'Amazon Financial Model'!307:307) -> 0 | U14: =LOOKUP(U2,'Amazon Financial Model'!1:1,'Amazon Financial Model'!307:307) -> 0 | V14: =LOOKUP(V2,'Amazon Financial Model'!1:1,'Amazon Financial Model'!307:307) -> 0 | W14: =LOOKUP(W2,'Amazon Financial Model'!1:1,'Amazon Financial Model'!307:307) -> 0 | X14: =LOOKUP(X2,'Amazon Financial Model'!1:1,'Amazon Financial Model'!307:307) -> 0 | Y14: =LOOKUP(Y2,'Amazon Financial Model'!1:1,'Amazon Financial Model'!307:307) -> 0 | Z14: =LOOKUP(Z2,'Amazon Financial Model'!1:1,'Amazon Financial Model'!307:307) -> 0
C15: Working Capital Changes | I15: =LOOKUP(I2,'Amazon Financial Model'!1:1,'Amazon Financial Model'!308:308) -> 0 | J15: =LOOKUP(J2,'Amazon Financial Model'!1:1,'Amazon Financial Model'!308:308) -> 0 | K15: =LOOKUP(K2,'Amazon Financial Model'!1:1,'Amazon Financial Model'!308:308) -> 0 | L15: =LOOKUP(L2,'Amazon Financial Model'!1:1,'Amazon Financial Model'!308:308) -> 0 | M15: =LOOKUP(M2,'Amazon Financial Model'!1:1,'Amazon Financial Model'!308:308) -> 0 | N15: =LOOKUP(N2,'Amazon Financial Model'!1:1,'Amazon Financial Model'!308:308) -> 0 | O15: =LOOKUP(O2,'Amazon Financial Model'!1:1,'Amazon Financial Model'!308:308) -> 0 | P15: =LOOKUP(P2,'Amazon Financial Model'!1:1,'Amazon Financial Model'!308:308) -> 0 | Q15: =LOOKUP(Q2,'Amazon Financial Model'!1:1,'Amazon Financial Model'!308:308) -> 0 | R15: =LOOKUP(R2,'Amazon Financial Model'!1:1,'Amazon Financial Model'!308:308) -> 0 | S15: =LOOKUP(S2,'Amazon Financial Model'!1:1,'Amazon Financial Model'!308:308) -> 0 | T15: =LOOKUP(T2,'Amazon Financial Model'!1:1,'Amazon Financial Model'!308:308) -> 0 | U15: =LOOKUP(U2,'Amazon Financial Model'!1:1,'Amazon Financial Model'!308:308) -> 0 | V15: =LOOKUP(V2,'Amazon Financial Model'!1:1,'Amazon Financial Model'!308:308) -> 0 | W15: =LOOKUP(W2,'Amazon Financial Model'!1:1,'Amazon Financial Model'!308:308) -> 0 | X15: =LOOKUP(X2,'Amazon Financial Model'!1:1,'Amazon Financial Model'!308:308) -> 0 | Y15: =LOOKUP(Y2,'Amazon Financial Model'!1:1,'Amazon Financial Model'!308:308) -> 0 | Z15: =LOOKUP(Z2,'Amazon Financial Model'!1:1,'Amazon Financial Model'!308:308) -> 0
C16: Increase in Other Assets | I16: =LOOKUP(I2,'Amazon Financial Model'!1:1,'Amazon Financial Model'!310:310) -> 0 | J16: =LOOKUP(J2,'Amazon Financial Model'!1:1,'Amazon Financial Model'!310:310) -> 0 | K16: =LOOKUP(K2,'Amazon Financial Model'!1:1,'Amazon Financial Model'!310:310) -> 0 | L16: =LOOKUP(L2,'Amazon Financial Model'!1:1,'Amazon Financial Model'!310:310) -> 0 | M16: =LOOKUP(M2,'Amazon Financial Model'!1:1,'Amazon Financial Model'!310:310) -> 0 | N16: =LOOKUP(N2,'Amazon Financial Model'!1:1,'Amazon Financial Model'!310:310) -> 0 | O16: =LOOKUP(O2,'Amazon Financial Model'!1:1,'Amazon Financial Model'!310:310) -> 0 | P16: =LOOKUP(P2,'Amazon Financial Model'!1:1,'Amazon Financial Model'!310:310) -> 0 | Q16: =LOOKUP(Q2,'Amazon Financial Model'!1:1,'Amazon Financial Model'!310:310) -> 0 | R16: =LOOKUP(R2,'Amazon Financial Model'!1:1,'Amazon Financial Model'!310:310) -> 0 | S16: =LOOKUP(S2,'Amazon Financial Model'!1:1,'Amazon Financial Model'!310:310) -> 0 | T16: =LOOKUP(T2,'Amazon Financial Model'!1:1,'Amazon Financial Model'!310:310) -> 0 | U16: =LOOKUP(U2,'Amazon Financial Model'!1:1,'Amazon Financial Model'!310:310) -> 0 | V16: =LOOKUP(V2,'Amazon Financial Model'!1:1,'Amazon Financial Model'!310:310) -> 0 | W16: =LOOKUP(W2,'Amazon Financial Model'!1:1,'Amazon Financial Model'!310:310) -> 0 | X16: =LOOKUP(X2,'Amazon Financial Model'!1:1,'Amazon Financial Model'!310:310) -> 0 | Y16: =LOOKUP(Y2,'Amazon Financial Model'!1:1,'Amazon Financial Model'!310:310) -> 0 | Z16: =LOOKUP(Z2,'Amazon Financial Model'!1:1,'Amazon Financial Model'!310:310) -> 0
C17: Depreciation | I17: =LOOKUP(I2,'Amazon Financial Model'!1:1,'Amazon Financial Model'!301:301) -> 0 | J17: =LOOKUP(J2,'Amazon Financial Model'!1:1,'Amazon Financial Model'!301:301) -> 0 | K17: =LOOKUP(K2,'Amazon Financial Model'!1:1,'Amazon Financial Model'!301:301) -> 0 | L17: =LOOKUP(L2,'Amazon Financial Model'!1:1,'Amazon Financial Model'!301:301) -> 0 | M17: =LOOKUP(M2,'Amazon Financial Model'!1:1,'Amazon Financial Model'!301:301) -> 0 | N17: =LOOKUP(N2,'Amazon Financial Model'!1:1,'Amazon Financial Model'!301:301) -> 0 | O17: =LOOKUP(O2,'Amazon Financial Model'!1:1,'Amazon Financial Model'!301:301) -> 0 | P17: =LOOKUP(P2,'Amazon Financial Model'!1:1,'Amazon Financial Model'!301:301) -> 0 | Q17: =LOOKUP(Q2,'Amazon Financial Model'!1:1,'Amazon Financial Model'!301:301) -> 0 | R17: =LOOKUP(R2,'Amazon Financial Model'!1:1,'Amazon Financial Model'!301:301) -> 0 | S17: =LOOKUP(S2,'Amazon Financial Model'!1:1,'Amazon Financial Model'!301:301) -> 0 | T17: =LOOKUP(T2,'Amazon Financial Model'!1:1,'Amazon Financial Model'!301:301) -> 0 | U17: =LOOKUP(U2,'Amazon Financial Model'!1:1,'Amazon Financial Model'!301:301) -> 0 | V17: =LOOKUP(V2,'Amazon Financial Model'!1:1,'Amazon Financial Model'!301:301) -> 0 | W17: =LOOKUP(W2,'Amazon Financial Model'!1:1,'Amazon Financial Model'!301:301) -> 0 | X17: =LOOKUP(X2,'Amazon Financial Model'!1:1,'Amazon Financial Model'!301:301) -> 0 | Y17: =LOOKUP(Y2,'Amazon Financial Model'!1:1,'Amazon Financial Model'!301:301) -> 0 | Z17: =LOOKUP(Z2,'Amazon Financial Model'!1:1,'Amazon Financial Model'!301:301) -> 0
C18: Invested Capital
C19: Tax Rate | I19: =LOOKUP(I2,'Amazon Financial Model'!1:1,'Amazon Financial Model'!299:299) -> 0.21 | J19: =LOOKUP(J2,'Amazon Financial Model'!1:1,'Amazon Financial Model'!299:299) -> 0.21 | K19: =LOOKUP(K2,'Amazon Financial Model'!1:1,'Amazon Financial Model'!299:299) -> 0.21 | L19: =LOOKUP(L2,'Amazon Financial Model'!1:1,'Amazon Financial Model'!299:299) -> 0.21 | M19: =LOOKUP(M2,'Amazon Financial Model'!1:1,'Amazon Financial Model'!299:299) -> 0.21 | N19: =LOOKUP(N2,'Amazon Financial Model'!1:1,'Amazon Financial Model'!299:299) -> 0.21 | O19: =LOOKUP(O2,'Amazon Financial Model'!1:1,'Amazon Financial Model'!299:299) -> 0.21 | P19: =LOOKUP(P2,'Amazon Financial Model'!1:1,'Amazon Financial Model'!299:299) -> 0.21 | Q19: =LOOKUP(Q2,'Amazon Financial Model'!1:1,'Amazon Financial Model'!299:299) -> 0.21 | R19: =LOOKUP(R2,'Amazon Financial Model'!1:1,'Amazon Financial Model'!299:299) -> 0.21 | S19: =LOOKUP(S2,'Amazon Financial Model'!1:1,'Amazon Financial Model'!299:299) -> 0.21 | T19: =LOOKUP(T2,'Amazon Financial Model'!1:1,'Amazon Financial Model'!299:299) -> 0.21 | U19: =LOOKUP(U2,'Amazon Financial Model'!1:1,'Amazon Financial Model'!299:299) -> 0.21 | V19: =LOOKUP(V2,'Amazon Financial Model'!1:1,'Amazon Financial Model'!299:299) -> 0.21 | W19: =LOOKUP(W2,'Amazon Financial Model'!1:1,'Amazon Financial Model'!299:299) -> 0.21 | X19: =LOOKUP(X2,'Amazon Financial Model'!1:1,'Amazon Financial Model'!299:299) -> 0.21 | Y19: =LOOKUP(Y2,'Amazon Financial Model'!1:1,'Amazon Financial Model'!299:299) -> 0.21 | Z19: =LOOKUP(Z2,'Amazon Financial Model'!1:1,'Amazon Financial Model'!299:299) -> 0.21
C20: EBIT | I20: =I13-I17 -> 0 | J20: =J13-J17 -> 0 | K20: 0 | L20: 0 | M20: 0 | N20: 0 | O20: 0 | P20: 0 | Q20: 0 | R20: 0 | S20: 0 | T20: 0 | U20: 0 | V20: 0 | W20: 0 | X20: 0 | Y20: 0 | Z20: 0
C21: Taxes | I21: =I19*I20 -> 0 | J21: =J19*J20 -> 0 | K21: 0 | L21: 0 | M21: 0 | N21: 0 | O21: 0 | P21: 0 | Q21: 0 | R21: 0 | S21: 0 | T21: 0 | U21: 0 | V21: 0 | W21: 0 | X21: 0 | Y21: 0 | Z21: 0
C22: Invested Capital | I22: =LOOKUP(I2,'Amazon Financial Model'!1:1,'Amazon Financial Model'!323:323) -> 81934.66542 | J22: =LOOKUP(J2,'Amazon Financial Model'!1:1,'Amazon Financial Model'!323:323) -> 81934.66542 | K22: =LOOKUP(K2,'Amazon Financial Model'!1:1,'Amazon Financial Model'!323:323) -> 81934.66542 | L22: =LOOKUP(L2,'Amazon Financial Model'!1:1,'Amazon Financial Model'!323:323) -> 81934.66542 | M22: =LOOKUP(M2,'Amazon Financial Model'!1:1,'Amazon Financial Model'!323:323) -> 81934.66542 | N22: =LOOKUP(N2,'Amazon Financial Model'!1:1,'Amazon Financial Model'!323:323) -> 81934.66542 | O22: =LOOKUP(O2,'Amazon Financial Model'!1:1,'Amazon Financial Model'!323:323) -> 81934.66542 | P22: =LOOKUP(P2,'Amazon Financial Model'!1:1,'Amazon Financial Model'!323:323) -> 81934.66542 | Q22: =LOOKUP(Q2,'Amazon Financial Model'!1:1,'Amazon Financial Model'!323:323) -> 81934.66542 | R22: =LOOKUP(R2,'Amazon Financial Model'!1:1,'Amazon Financial Model'!323:323) -> 81934.66542 | S22: =LOOKUP(S2,'Amazon Financial Model'!1:1,'Amazon Financial Model'!323:323) -> 81934.66542 | T22: =LOOKUP(T2,'Amazon Financial Model'!1:1,'Amazon Financial Model'!323:323) -> 81934.66542 | U22: =LOOKUP(U2,'Amazon Financial Model'!1:1,'Amazon Financial Model'!323:323) -> 81934.66542 | V22: =LOOKUP(V2,'Amazon Financial Model'!1:1,'Amazon Financial Model'!323:323) -> 81934.66542 | W22: =LOOKUP(W2,'Amazon Financial Model'!1:1,'Amazon Financial Model'!323:323) -> 81934.66542 | X22: =LOOKUP(X2,'Amazon Financial Model'!1:1,'Amazon Financial Model'!323:323) -> 81934.66542 | Y22: =LOOKUP(Y2,'Amazon Financial Model'!1:1,'Amazon Financial Model'!323:323) -> 81934.66542 | Z22: =LOOKUP(Z2,'Amazon Financial Model'!1:1,'Amazon Financial Model'!323:323) -> 81934.66542
B24: Free Cash Flow and Explicit Value
C25: EBITDA | I25: =I13*I3 -> 0 | J25: 0 | K25: 0 | L25: 0 | M25: 0 | N25: 0 | O25: 0 | P25: 0 | Q25: 0 | R25: 0 | S25: 0 | T25: 0 | U25: 0 | V25: 0 | W25: 0 | X25: 0 | Y25: 0 | Z25: 0
C26: Less: Capital Expenditures | I26: =I14*I3 -> 0 | J26: 0 | K26: 0 | L26: 0 | M26: 0 | N26: 0 | O26: 0 | P26: 0 | Q26: 0 | R26: 0 | S26: 0 | T26: 0 | U26: 0 | V26: 0 | W26: 0 | X26: 0 | Y26: 0 | Z26: 0
C27: Less: Working Capital Changes | I27: =I15*I3 -> 0 | J27: 0 | K27: 0 | L27: 0 | M27: 0 | N27: 0 | O27: 0 | P27: 0 | Q27: 0 | R27: 0 | S27: 0 | T27: 0 | U27: 0 | V27: 0 | W27: 0 | X27: 0 | Y27: 0 | Z27: 0
C28: Less: Increase in Other Assets | I28: =I16*I3 -> 0 | J28: =J16*J3 -> 0 | K28: 0 | L28: 0 | M28: 0 | N28: 0 | O28: 0 | P28: 0 | Q28: 0 | R28: 0 | S28: 0 | T28: 0 | U28: 0 | V28: 0 | W28: 0 | X28: 0 | Y28: 0 | Z28: 0
C29: Less: Taxes | I29: =I21*I3 -> 0 | J29: 0 | K29: 0 | L29: 0 | M29: 0 | N29: 0 | O29: 0 | P29: 0 | Q29: 0 | R29: 0 | S29: 0 | T29: 0 | U29: 0 | V29: 0 | W29: 0 | X29: 0 | Y29: 0 | Z29: 0
C30: Free Cash Flow | I30: =I25-I26-I27-I29-I28 -> 0 | J30: =J25-J26-J27-J29-J28 -> 0 | K30: 0 | L30: 0 | M30: 0 | N30: 0 | O30: 0 | P30: 0 | Q30: 0 | R30: 0 | S30: 0 | T30: 0 | U30: 0 | V30: 0 | W30: 0 | X30: 0 | Y30: 0 | Z30: 0
C32: Depreciation | I32: =I17*I3 -> 0 | J32: 0 | K32: 0 | L32: 0 | M32: 0 | N32: 0 | O32: 0 | P32: 0 | Q32: 0 | R32: 0 | S32: 0 | T32: 0 | U32: 0 | V32: 0 | W32: 0 | X32: 0 | Y32: 0 | Z32: 0
C33: EBIT | I33: =I25-I32 -> 0 | J33: =J25-J32 -> 0 | K33: 0 | L33: 0 | M33: 0 | N33: 0 | O33: 0 | P33: 0 | Q33: 0 | R33: 0 | S33: 0 | T33: 0 | U33: 0 | V33: 0 | W33: 0 | X33: 0 | Y33: 0 | Z33: 0
C34: Taxes on EBIT | I34: =I33*I19 -> 0 | J34: =J33*J19 -> 0 | K34: 0 | L34: 0 | M34: 0 | N34: 0 | O34: 0 | P34: 0 | Q34: 0 | R34: 0 | S34: 0 | T34: 0 | U34: 0 | V34: 0 | W34: 0 | X34: 0 | Y34: 0 | Z34: 0
C35: NOPAT | I35: =I33-I34 -> 0 | J35: =J33-J34 -> 0 | K35: 0 | L35: 0 | M35: 0 | N35: 0 | O35: 0 | P35: 0 | Q35: 0 | R35: 0 | S35: 0 | T35: 0 | U35: 0 | V35: 0 | W35: 0 | X35: 0 | Y35: 0 | Z35: 0
C37: PV of Cash Flow Beginning of Period | E37: =Scenarios!F7 -> 0.09
C38: NPV with Cash Flow at Beginning of Period | E38: =NPV(E37,I30:Z30) -> 0
C39: NPV with Cash at Middle of Period | E39: =E38*(1+E37)^0.5 -> 0
B41: Stable Period Adjustments
C42: Stable Capital Expenditues to Depreciation | E42: =Scenarios!F14 -> FALSE
C43: Depreciation at Terminal Period
C44: Capital Expenditures in Terminal Period
C46: Stable Working Capital to EBITDA | E46: =Scenarios!F16 -> -0.05769230769 | I46: =$E$46 -> -0.05769230769 | J46: =$E$46 -> -0.05769230769 | K46: -0.05769230769 | L46: -0.05769230769 | M46: -0.05769230769 | N46: -0.05769230769 | O46: -0.05769230769 | P46: -0.05769230769 | Q46: -0.05769230769 | R46: -0.05769230769 | S46: -0.05769230769 | T46: -0.05769230769 | U46: -0.05769230769 | V46: -0.05769230769 | W46: -0.05769230769 | X46: -0.05769230769 | Y46: -0.05769230769 | Z46: -0.05769230769
C47: Stable Working Capital | I47: =I46*I25*I4 -> 0 | J47: =J46*J25*J4 -> 0 | K47: 0 | L47: 0 | M47: 0 | N47: 0 | O47: 0 | P47: 0 | Q47: 0 | R47: 0 | S47: 0 | T47: 0 | U47: 0 | V47: 0 | W47: 0 | X47: 0 | Y47: 0 | Z47: 0
C49: Non-Normalised Terminal Free Cash Flow | I49: =I4*I30 -> 0 | J49: 0 | K49: 0 | L49: 0 | M49: 0 | N49: 0 | O49: 0 | P49: 0 | Q49: 0 | R49: 0 | S49: 0 | T49: 0 | U49: 0 | V49: 0 | W49: 0 | X49: 0 | Y49: 0 | Z49: 0
C50: Normalised Terminal Free Cash Flow | I50: =(I49+I26+I27-I44-I47)*I4 -> 0 | J50: =(J49+J26+J27-J44-J47)*J4 -> 0 | K50: 0 | L50: 0 | M50: 0 | N50: 0 | O50: 0 | P50: 0 | Q50: 0 | R50: 0 | S50: 0 | T50: 0 | U50: 0 | V50: 0 | W50: 0 | X50: 0 | Y50: 0 | Z50: 0
C51: Applied Terminal Free Cash Flow | E51: =Scenarios!F13 -> TRUE | I51: =IF($E$51,I50,I49) -> 0 | J51: =IF($E$51,J50,J49) -> 0 | K51: 0 | L51: 0 | M51: 0 | N51: 0 | O51: 0 | P51: 0 | Q51: 0 | R51: 0 | S51: 0 | T51: 0 | U51: 0 | V51: 0 | W51: 0 | X51: 0 | Y51: 0 | Z51: 0
C53: Other Terminal Data
D54: EBITDA in Terminal Period | I54: =I25*I4 -> 0 | J54: 0 | K54: 0 | L54: 0 | M54: 0 | N54: 0 | O54: 0 | P54: 0 | Q54: 0 | R54: 0 | S54: 0 | T54: 0 | U54: 0 | V54: 0 | W54: 0 | X54: 0 | Y54: 0 | Z54: 0
D55: NOPAT in Terminal Period | I55: =I35*I4 -> 0 | J55: 0 | K55: 0 | L55: 0 | M55: 0 | N55: 0 | O55: 0 | P55: 0 | Q55: 0 | R55: 0 | S55: 0 | T55: 0 | U55: 0 | V55: 0 | W55: 0 | X55: 0 | Y55: 0 | Z55: 0
D56: Invested Capital in Exit Period | I56: =I22*I4 -> 0 | J56: =J22*J4 -> 0 | K56: 0 | L56: 0 | M56: 0 | N56: 0 | O56: 81934.66542 | P56: 0 | Q56: 0 | R56: 0 | S56: 0 | T56: 0 | U56: 0 | V56: 0 | W56: 0 | X56: 0 | Y56: 0 | Z56: 0
B58: Terminal Valuation
C60: Standard Growth Model | F60: WACC | G60: Growth
D61: FCF Multiple | F61: =E6 -> 0.09 | G61: =Scenarios!$F$8 -> 0.04
D62: NPV of FCF Beginning
D63: Middle of Period
C65: Multiple Model
D66: EV/EBITDA | E66: =E8 -> 12 | I66: =$E$66*I4 -> 0 | J66: 0 | K66: 0 | L66: 0 | M66: 0 | N66: 0 | O66: 12 | P66: 0 | Q66: 0 | R66: 0 | S66: 0 | T66: 0 | U66: 0 | V66: 0 | W66: 0 | X66: 0 | Y66: 0 | Z66: 0
D67: EBITDA in Terminal Period | I67: =I54 -> 0 | J67: =J54 -> 0 | K67: 0 | L67: 0 | M67: 0 | N67: 0 | O67: 0 | P67: 0 | Q67: 0 | R67: 0 | S67: 0 | T67: 0 | U67: 0 | V67: 0 | W67: 0 | X67: 0 | Y67: 0 | Z67: 0
D68: Total Terminal Value and PV | E68: =NPV(F68,I68:Z68)*(1+F68)^0.5 -> 0 | F68: =E6 -> 0.09 | I68: =I67*I66 -> 0 | J68: =J67*J66 -> 0 | K68: 0 | L68: 0 | M68: 0 | N68: 0 | O68: 0 | P68: 0 | Q68: 0 | R68: 0 | S68: 0 | T68: 0 | U68: 0 | V68: 0 | W68: 0 | X68: 0 | Y68: 0 | Z68: 0
C70: Value Driver Formula - Standard | E70: Multiple | F70: WACC | G70: Growth | H70: ROIC
D71: NOPAT Multiple | F71: =E6 -> 0.09 | G71: =E7 -> 0.04 | H71: =E10 -> 0.18
D72: Terminal NOPAT
D73: Total Terminal Value with Value Driver | E73: =NPV(F73,I73:Z73)*(1+E6)^0.5 -> 0 | F73: =F71 -> 0.09
C75: Value Driver Formula - Sudden Change in ROIC
D76: Invested Capital at Exit | I76: =I56 -> 0 | J76: =J56 -> 0 | K76: 0 | L76: 0 | M76: 0 | N76: 0 | O76: 81934.66542 | P76: 0 | Q76: 0 | R76: 0 | S76: 0 | T76: 0 | U76: 0 | V76: 0 | W76: 0 | X76: 0 | Y76: 0 | Z76: 0
D77: Terminal NOPAT | E77: =E10 -> 0.18 | I77: =$E$77*I76 -> 0 | J77: =$E$77*J76 -> 0 | K77: 0 | L77: 0 | M77: 0 | N77: 0 | O77: 14748.23978 | P77: 0 | Q77: 0 | R77: 0 | S77: 0 | T77: 0 | U77: 0 | V77: 0 | W77: 0 | X77: 0 | Y77: 0 | Z77: 0
D78: Valuation Multiple | E78: =E71 -> 0 | I78: =$E$78*I77 -> 0 | J78: =$E$78*J77 -> 0 | K78: 0 | L78: 0 | M78: 0 | N78: 0 | O78: 0 | P78: 0 | Q78: 0 | R78: 0 | S78: 0 | T78: 0 | U78: 0 | V78: 0 | W78: 0 | X78: 0 | Y78: 0 | Z78: 0
D79: Terminal Value | E79: =NPV(F79,I78:Z78)*(1+F79)^0.5 -> 0 | F79: =F73 -> 0.09
B82: Total Equity Value with Alternative Terminal Value Methods
C84: Year Before Valuation | E84: =I2-1 -> 2019
C86: Debt
C87: Cash
C88: Investments
C89: Net
C91: Shares
C93: Current Stock Price | E93: ='AMZN Stock Price'!E1200 -> 2410.219971
C96: Growth Method
D97: Explicit Value | E97: =E39 -> 0
D98: Terminal Value | E98: =E63 -> 0
D99: Total Enterpise Value | E99: =E97+E98 -> 0
D100: Less: EV to Equity Value | E100: =-E89 -> 0
D101: Total Equity Value | E101: =E99+E100 -> 0
D102: Shares | E102: =E91 -> 0
D103: Equity Value per Share | E103: =E101/E102 -> 
D105: EPS | E105: =LOOKUP(E84,'Amazon Financial Model'!1:1,'Amazon Financial Model'!28:28) -> 23.45999908
D106: P/E | E106: =E103/E105 -> 
D108: EBITDA | E108: =LOOKUP(E84,'Amazon Financial Model'!1:1,'Amazon Financial Model'!300:300) -> 36330
D109: EV/EBITDA | E109: =E99/E108 -> 0
D111: Balance Sheet Equity | E111: =LOOKUP(E84,'Amazon Financial Model'!1:1,'Amazon Financial Model'!62:62) -> 62060
D112: Price to Book Value | E112: =E101/E111 -> 0
C114: EV/EBITDA Method
D115: Explicit Value | E115: =E97 -> 0
D116: Terminal Value | E116: =E68 -> 0
D117: Total Enterpise Value | E117: =E115+E116 -> 0
D118: Less: EV to Equity Value | E118: =E100 -> 0
D119: Total Equity Value | E119: =E117+E118 -> 0
D120: Shares | E120: =E102 -> 0
D121: Equity Value per Share | E121: =E119/E120 -> 
D123: EPS | E123: =E105 -> 23.45999908
D124: P/E | E124: =E121/E123 -> 
D126: EBITDA | E126: =E108 -> 36330
D127: EV/EBITDA | E127: =E117/E126 -> 0
D129: Balance Sheet Equity | E129: =E111 -> 62060
D130: Price to Book Value | E130: =E119/E129 -> 0
C132: McKinsey Method Incremental Return
D133: Explicit Value | E133: =E115 -> 0
D134: Terminal Value | E134: =E73 -> 0
D135: Total Enterpise Value | E135: =E133+E134 -> 0
D136: Less: EV to Equity Value | E136: =E118 -> 0
D137: Total Equity Value | E137: =E135+E136 -> 0
D138: Shares | E138: =E120 -> 0
D139: Equity Value per Share | E139: =E137/E138 -> 
D141: EPS | E141: =E123 -> 23.45999908
D142: P/E | E142: =E139/E141 -> 
D144: EBITDA | E144: =E126 -> 36330
D145: EV/EBITDA | E145: =E135/E144 -> 0
D147: Balance Sheet Equity | E147: =E129 -> 62060
D148: Price to Book Value | E148: =E137/E147 -> 0
C150: Value Driver with Immediate Change to New Return
D151: Explicit Value | E151: =E133 -> 0
D152: Terminal Value | E152: =E79 -> 0
D153: Total Enterpise Value | E153: =E151+E152 -> 0
D154: Less: EV to Equity Value | E154: =E136 -> 0
D155: Total Equity Value | E155: =E153+E154 -> 0
D156: Shares | E156: =E138 -> 0
D157: Equity Value per Share | E157: =E155/E156 -> 
D159: EPS | E159: =E141 -> 23.45999908
D160: P/E | E160: =E157/E159 -> 
D162: EBITDA | E162: =E144 -> 36330
D163: EV/EBITDA | E163: =E153/E162 -> 0
D165: Balance Sheet Equity | E165: =E147 -> 62060
D166: Price to Book Value | E166: =E155/E165 -> 0

Sheet Cap Exp and Depreciation
B1: Timeline
C2: Period | H2: 1 | I2: 2 | J2: 3 | K2: 4 | L2: 5 | M2: 6 | N2: 7 | O2: 8 | P2: 9 | Q2: 10 | R2: 11 | S2: 12 | T2: 13 | U2: 14 | V2: 15 | W2: 16 | X2: 17 | Y2: 18 | Z2: 19 | AA2: 20 | AB2: 21 | AC2: 22 | AD2: 23 | AE2: 24 | AF2: 25 | AG2: 26 | AH2: 27 | AI2: 28 | AJ2: 29 | AK2: 30
C3: Exceeds Book Life | F3: =F6 -> 5 | H3: =H2>$F$3 -> FALSE | I3: =I2>$F$3 -> FALSE | J3: FALSE | K3: FALSE | L3: FALSE | M3: TRUE | N3: TRUE | O3: TRUE | P3: TRUE | Q3: TRUE | R3: TRUE | S3: TRUE | T3: TRUE | U3: TRUE | V3: TRUE | W3: TRUE | X3: TRUE | Y3: TRUE | Z3: TRUE | AA3: TRUE | AB3: TRUE | AC3: TRUE | AD3: TRUE | AE3: TRUE | AF3: TRUE | AG3: TRUE | AH3: TRUE | AI3: TRUE | AJ3: TRUE | AK3: TRUE
B5: Assumptions
C6: Book Life | F6: 5 | I6: Cap Exp to Depreciation | L6: =LOOKUP(F6+1,2:2,18:18) -> FALSE
C7: Growth Rate | F7: 0.25 | I7: Net Plant Depreciation Rate | L7: =LOOKUP(F6+1,2:2,32:32) -> FALSE
C8: Starting Cap Exp | F8: 100
B10: Gross Plant
C11: Plant Balance
D12: Opening Balance
D13: Add: Capital Expenditures | F13: =F7 -> 0.25
D14: Less: Retirements | F14: =F6 -> 5
D15: Closing Balance
D17: Depreciation | F17: =1/F14 -> 0.2
D18: Cap Exp to Depreciation | H18: =IF(H17,H13/H17) -> FALSE | I18: =IF(I17,I13/I17) -> FALSE | J18: FALSE | K18: FALSE | L18: FALSE | M18: FALSE | N18: FALSE | O18: FALSE | P18: FALSE | Q18: FALSE | R18: FALSE | S18: FALSE | T18: FALSE | U18: FALSE | V18: FALSE | W18: FALSE | X18: FALSE | Y18: FALSE | Z18: FALSE | AA18: FALSE | AB18: FALSE | AC18: FALSE | AD18: FALSE | AE18: FALSE | AF18: FALSE | AG18: FALSE | AH18: FALSE | AI18: FALSE | AJ18: FALSE | AK18: FALSE
C20: Accumulated Depreciation
D21: Opening Balance | H21: =G24 -> 0 | I21: =H24 -> 0 | J21: 0 | K21: 0 | L21: 0 | M21: 0 | N21: 0 | O21: 0 | P21: 0 | Q21: 0 | R21: 0 | S21: 0 | T21: 0 | U21: 0 | V21: 0 | W21: 0 | X21: 0 | Y21: 0 | Z21: 0 | AA21: 0 | AB21: 0 | AC21: 0 | AD21: 0 | AE21: 0 | AF21: 0 | AG21: 0 | AH21: 0 | AI21: 0 | AJ21: 0 | AK21: 0
D22: Add: Depreciation Expense | H22: =H17 -> 0 | I22: =I17 -> 0 | J22: 0 | K22: 0 | L22: 0 | M22: 0 | N22: 0 | O22: 0 | P22: 0 | Q22: 0 | R22: 0 | S22: 0 | T22: 0 | U22: 0 | V22: 0 | W22: 0 | X22: 0 | Y22: 0 | Z22: 0 | AA22: 0 | AB22: 0 | AC22: 0 | AD22: 0 | AE22: 0 | AF22: 0 | AG22: 0 | AH22: 0 | AI22: 0 | AJ22: 0 | AK22: 0
D23: Less: Retirements | H23: =H14 -> 0 | I23: =I14 -> 0 | J23: 0 | K23: 0 | L23: 0 | M23: 0 | N23: 0 | O23: 0 | P23: 0 | Q23: 0 | R23: 0 | S23: 0 | T23: 0 | U23: 0 | V23: 0 | W23: 0 | X23: 0 | Y23: 0 | Z23: 0 | AA23: 0 | AB23: 0 | AC23: 0 | AD23: 0 | AE23: 0 | AF23: 0 | AG23: 0 | AH23: 0 | AI23: 0 | AJ23: 0 | AK23: 0
D24: Closing Balance | H24: =H21+H22-H23 -> 0 | I24: =I21+I22-I23 -> 0 | J24: 0 | K24: 0 | L24: 0 | M24: 0 | N24: 0 | O24: 0 | P24: 0 | Q24: 0 | R24: 0 | S24: 0 | T24: 0 | U24: 0 | V24: 0 | W24: 0 | X24: 0 | Y24: 0 | Z24: 0 | AA24: 0 | AB24: 0 | AC24: 0 | AD24: 0 | AE24: 0 | AF24: 0 | AG24: 0 | AH24: 0 | AI24: 0 | AJ24: 0 | AK24: 0
C26: Net Plant
D27: Opening Balance | H27: =G30 -> 0 | I27: =H30 -> 0 | J27: 0 | K27: 0 | L27: 0 | M27: 0 | N27: 0 | O27: 0 | P27: 0 | Q27: 0 | R27: 0 | S27: 0 | T27: 0 | U27: 0 | V27: 0 | W27: 0 | X27: 0 | Y27: 0 | Z27: 0 | AA27: 0 | AB27: 0 | AC27: 0 | AD27: 0 | AE27: 0 | AF27: 0 | AG27: 0 | AH27: 0 | AI27: 0 | AJ27: 0 | AK27: 0
D28: Add: Capital Expenditures | H28: =H13 -> 0 | I28: =I13 -> 0 | J28: 0 | K28: 0 | L28: 0 | M28: 0 | N28: 0 | O28: 0 | P28: 0 | Q28: 0 | R28: 0 | S28: 0 | T28: 0 | U28: 0 | V28: 0 | W28: 0 | X28: 0 | Y28: 0 | Z28: 0 | AA28: 0 | AB28: 0 | AC28: 0 | AD28: 0 | AE28: 0 | AF28: 0 | AG28: 0 | AH28: 0 | AI28: 0 | AJ28: 0 | AK28: 0
D29: Less: Depreciation | H29: =H17 -> 0 | I29: =I17 -> 0 | J29: 0 | K29: 0 | L29: 0 | M29: 0 | N29: 0 | O29: 0 | P29: 0 | Q29: 0 | R29: 0 | S29: 0 | T29: 0 | U29: 0 | V29: 0 | W29: 0 | X29: 0 | Y29: 0 | Z29: 0 | AA29: 0 | AB29: 0 | AC29: 0 | AD29: 0 | AE29: 0 | AF29: 0 | AG29: 0 | AH29: 0 | AI29: 0 | AJ29: 0 | AK29: 0
D30: Closing Balance | H30: =H27+H28-H29 -> 0 | I30: =I27+I28-I29 -> 0 | J30: 0 | K30: 0 | L30: 0 | M30: 0 | N30: 0 | O30: 0 | P30: 0 | Q30: 0 | R30: 0 | S30: 0 | T30: 0 | U30: 0 | V30: 0 | W30: 0 | X30: 0 | Y30: 0 | Z30: 0 | AA30: 0 | AB30: 0 | AC30: 0 | AD30: 0 | AE30: 0 | AF30: 0 | AG30: 0 | AH30: 0 | AI30: 0 | AJ30: 0 | AK30: 0
D32: Net Plant Depreciaiton Rate | H32: =IF(H27,H17/H27) -> FALSE | I32: =IF(I27,I17/I27) -> FALSE | J32: FALSE | K32: FALSE | L32: FALSE | M32: FALSE | N32: FALSE | O32: FALSE | P32: FALSE | Q32: FALSE | R32: FALSE | S32: FALSE | T32: FALSE | U32: FALSE | V32: FALSE | W32: FALSE | X32: FALSE | Y32: FALSE | Z32: FALSE | AA32: FALSE | AB32: FALSE | AC32: FALSE | AD32: FALSE | AE32: FALSE | AF32: FALSE | AG32: FALSE | AH32: FALSE | AI32: FALSE | AJ32: FALSE | AK32: FALSE
B34: Data Tables
D35: Growth Rate | H35: 0 | I35: 0.005 | J35: =I35+0.5% -> 0.01 | K35: =J35+0.5% -> 0.015 | L35: 0.02 | M35: 0.025 | N35: 0.03 | O35: 0.035 | P35: 0.04 | Q35: 0.045 | R35: 0.05 | S35: 0.055 | T35: 0.06 | U35: =T35+2% -> 0.08 | V35: 0.1 | W35: 0.12 | X35: 0.14 | Y35: 0.16 | Z35: 0.18 | AA35: =Z35+2% -> 0.2 | AB35: 0.22 | AC35: 0.24 | AD35: 0.26 | AE35: 0.28 | AF35: 0.3 | AG35: 0.32 | AH35: =AG35+2% -> 0.34 | AI35: 0.36 | AJ35: 0.38
D36: Cap Exp to Depreciation | G36: =L6 -> FALSE | H36: FALSE | I36: FALSE | J36: FALSE | K36: FALSE | L36: FALSE | M36: FALSE | N36: FALSE | O36: FALSE | P36: FALSE | Q36: FALSE | R36: FALSE | S36: FALSE | T36: FALSE | U36: FALSE | V36: FALSE | W36: FALSE | X36: FALSE | Y36: FALSE | Z36: FALSE | AA36: FALSE | AB36: FALSE | AC36: FALSE | AD36: FALSE | AE36: FALSE | AF36: FALSE | AG36: FALSE | AH36: FALSE | AI36: FALSE | AJ36: FALSE
D38: Growth Rate | H38: 0 | I38: 0.005 | J38: =I38+0.5% -> 0.01 | K38: =J38+0.5% -> 0.015 | L38: 0.02 | M38: 0.025 | N38: 0.03 | O38: 0.035 | P38: 0.04 | Q38: 0.045 | R38: 0.05 | S38: 0.055 | T38: 0.06 | U38: =T38+2% -> 0.08 | V38: 0.1 | W38: 0.12 | X38: 0.14 | Y38: 0.16 | Z38: 0.18 | AA38: 0.2 | AB38: 0.22 | AC38: 0.24 | AD38: 0.26 | AE38: 0.28 | AF38: 0.3 | AG38: 0.32 | AH38: 0.34 | AI38: 0.36 | AJ38: 0.38
D39: Net Plant Depreciation Rate | G39: =L7 -> FALSE | H39: FALSE | I39: FALSE | J39: FALSE | K39: FALSE | L39: FALSE | M39: FALSE | N39: FALSE | O39: FALSE | P39: FALSE | Q39: FALSE | R39: FALSE | S39: FALSE | T39: FALSE | U39: FALSE | V39: FALSE | W39: FALSE | X39: FALSE | Y39: FALSE | Z39: FALSE | AA39: FALSE | AB39: FALSE | AC39: FALSE | AD39: FALSE | AE39: FALSE | AF39: FALSE | AG39: FALSE | AH39: FALSE | AI39: FALSE | AJ39: FALSE

Sheet Equations
B4: Value Driver | E4: Value = Income * (1-Growth/Return)/(Cost of Capital - Growth)
B6: Sudden Value Drive | E6: Income = ROIC * Invested Capital
E7: Value = ROIC * Invested Capital * (1-Growth/Return)/(Cost of Capital - Growth)
B9: Change in NOPAT
B10: Change in Capital Expenditure
B12: Stable WC Change = [EBITDA x WC/EBITDA * Growth]/[1+Growth]
B13: WC Change Factor = [WC/EBITDA * Growth]/[1+Growth]
B14: Stable WC Change = EBITDA x WC Change Factor

Sheet AMZN Stock Price
A1: Date | B1: Open | C1: High | D1: Low | E1: Close | F1: Adj Close | G1: Volume | I1: Close | J1: =Summary!E16 -> Growth | K1: =Summary!F16 -> EV/EBITDA | L1: =Summary!G17 -> Incremental | M1: =Summary!H17 -> Direct
A2: 1997-05-12 | B2: 2.4375 | C2: 2.5 | D2: 1.708333 | E2: 1.729167 | F2: 1.729167 | G2: 86856000 | H2: =A2 -> 1997-05-12 | I2: =E2 -> 1.729167 | J2: =Summary!E18 ->  | K2: =Summary!F18 ->  | L2: =Summary!G18 ->  | M2: =Summary!H18 -> 
A3: 1997-05-19 | B3: 1.760417 | C3: 1.770833 | D3: 1.3125 | E3: 1.5 | F3: 1.5 | G3: 58141200 | H3: =A3 -> 1997-05-19 | I3: =E3 -> 1.5 | J3: =J$2 ->  | K3: =K$2 -> 
A4: 1997-05-26 | B4: 1.510417 | C4: 1.645833 | D4: 1.458333 | E4: 1.5 | F4: 1.5 | G4: 19339200 | H4: 1997-05-26 | I4: 1.5 | J4: =J$2 -> 
A5: 1997-06-02 | B5: 1.510417 | C5: 1.708333 | D5: 1.375 | E5: 1.65625 | F5: 1.65625 | G5: 18334800 | H5: 1997-06-02 | I5: 1.65625
A6: 1997-06-09 | B6: 1.65625 | C6: 1.708333 | D6: 1.53125 | E6: 1.583333 | F6: 1.583333 | G6: 11324400 | H6: 1997-06-09 | I6: 1.583333
A7: 1997-06-16 | B7: 1.604167 | C7: 1.604167 | D7: 1.494792 | E7: 1.526042 | F7: 1.526042 | G7: 12475200 | H7: 1997-06-16 | I7: 1.526042
A8: 1997-06-23 | B8: 1.541667 | C8: 1.541667 | D8: 1.479167 | E8: 1.489583 | F8: 1.489583 | G8: 8282400 | H8: 1997-06-23 | I8: 1.489583
A9: 1997-06-30 | B9: 1.510417 | C9: 1.916667 | D9: 1.479167 | E9: 1.911458 | F9: 1.911458 | G9: 20498400 | H9: 1997-06-30 | I9: 1.911458
A10: 1997-07-07 | B10: 1.833333 | C10: 2.572917 | D10: 1.833333 | E10: 2.291667 | F10: 2.291667 | G10: 51415200 | H10: 1997-07-07 | I10: 2.291667
A11: 1997-07-14 | B11: 2.322917 | C11: 2.494792 | D11: 2.114583 | E11: 2.15625 | F11: 2.15625 | G11: 20852400 | H11: 1997-07-14 | I11: 2.15625
A12: 1997-07-21 | B12: 2.177083 | C12: 2.333333 | D12: 2.0625 | E12: 2.229167 | F12: 2.229167 | G12: 7234800 | H12: 1997-07-21 | I12: 2.229167
A13: 1997-07-28 | B13: 2.229167 | C13: 2.505208 | D13: 2.21875 | E13: 2.416667 | F13: 2.416667 | G13: 14948400 | H13: 1997-07-28 | I13: 2.416667
A14: 1997-08-04 | B14: 2.375 | C14: 2.411458 | D14: 2.104167 | E14: 2.291667 | F14: 2.291667 | G14: 11192400 | H14: 1997-08-04 | I14: 2.291667
A15: 1997-08-11 | B15: 2.291667 | C15: 2.333333 | D15: 1.9375 | E15: 2.114583 | F15: 2.114583 | G15: 5040000 | H15: 1997-08-11 | I15: 2.114583
A16: 1997-08-18 | B16: 2.052083 | C16: 2.208333 | D16: 1.96875 | E16: 2.125 | F16: 2.125 | G16: 5124000 | H16: 1997-08-18 | I16: 2.125
A17: 1997-08-25 | B17: 2.104167 | C17: 2.395833 | D17: 2.104167 | E17: 2.338542 | F17: 2.338542 | G17: 6962400 | H17: 1997-08-25 | I17: 2.338542
A18: 1997-09-01 | B18: 2.34375 | C18: 2.666667 | D18: 2.3125 | E18: 2.5 | F18: 2.5 | G18: 7952400 | H18: 1997-09-01 | I18: 2.5
A19: 1997-09-08 | B19: 2.53125 | C19: 3.697917 | D19: 2.5 | E19: 3.6875 | F19: 3.6875 | G19: 26082000 | H19: 1997-09-08 | I19: 3.6875
A20: 1997-09-15 | B20: 3.666667 | C20: 4.083333 | D20: 3.052083 | E20: 3.947917 | F20: 3.947917 | G20: 25681200 | H20: 1997-09-15 | I20: 3.947917
A21: 1997-09-22 | B21: 4 | C21: 4.8125 | D21: 3.947917 | E21: 4.166667 | F21: 4.166667 | G21: 40520400 | H21: 1997-09-22 | I21: 4.166667
A22: 1997-09-29 | B22: 4.145833 | C22: 4.5 | D22: 3.802083 | E22: 4.015625 | F22: 4.015625 | G22: 15666000 | H22: 1997-09-29 | I22: 4.015625
A23: 1997-10-06 | B23: 4 | C23: 4.1875 | D23: 3.666667 | E23: 3.901042 | F23: 3.901042 | G23: 14314800 | H23: 1997-10-06 | I23: 3.901042
A24: 1997-10-13 | B24: 3.927083 | C24: 4.104167 | D24: 3.520833 | E24: 3.625 | F24: 3.625 | G24: 10732800 | H24: 1997-10-13 | I24: 3.625
A25: 1997-10-20 | B25: 3.677083 | C25: 5.0625 | D25: 3.666667 | E25: 5.026042 | F25: 5.026042 | G25: 37365600 | H25: 1997-10-20 | I25: 5.026042
A26: 1997-10-27 | B26: 4.802083 | C26: 5.5 | D26: 3.875 | E26: 5.083333 | F26: 5.083333 | G26: 34734000 | H26: 1997-10-27 | I26: 5.083333
A27: 1997-11-03 | B27: 5.21875 | C27: 5.21875 | D27: 4.385417 | E27: 4.479167 | F27: 4.479167 | G27: 12998400 | H27: 1997-11-03 | I27: 4.479167
A28: 1997-11-10 | B28: 4.5 | C28: 4.5625 | D28: 3.666667 | E28: 4.166667 | F28: 4.166667 | G28: 25920000 | H28: 1997-11-10 | I28: 4.166667
A29: 1997-11-17 | B29: 4.229167 | C29: 4.604167 | D29: 4.21875 | E29: 4.489583 | F29: 4.489583 | G29: 20320800 | H29: 1997-11-17 | I29: 4.489583
A30: 1997-11-24 | B30: 4.375 | C30: 4.416667 | D30: 4.041667 | E30: 4.125 | F30: 4.125 | G30: 8558400 | H30: 1997-11-24 | I30: 4.125
A31: 1997-12-01 | B31: 4.239583 | C31: 4.59375 | D31: 4.135417 | E31: 4.59375 | F31: 4.59375 | G31: 10635600 | H31: 1997-12-01 | I31: 4.59375
A32: 1997-12-08 | B32: 4.541667 | C32: 4.833333 | D32: 4.395833 | E32: 4.541667 | F32: 4.541667 | G32: 15230400 | H32: 1997-12-08 | I32: 4.541667
A33: 1997-12-15 | B33: 4.583333 | C33: 4.666667 | D33: 4.166667 | E33: 4.5 | F33: 4.5 | G33: 17479200 | H33: 1997-12-15 | I33: 4.5
A34: 1997-12-22 | B34: 4.5 | C34: 4.78125 | D34: 4.432292 | E34: 4.520833 | F34: 4.520833 | G34: 8353200 | H34: 1997-12-22 | I34: 4.520833
A35: 1997-12-29 | B35: 4.583333 | C35: 5.041667 | D35: 4.53125 | E35: 4.958333 | F35: 4.958333 | G35: 14944800 | H35: 1997-12-29 | I35: 4.958333
A36: 1998-01-05 | B36: 4.885417 | C36: 4.9375 | D36: 4.229167 | E36: 4.260417 | F36: 4.260417 | G36: 23149200 | H36: 1998-01-05 | I36: 4.260417
A37: 1998-01-12 | B37: 4.166667 | C37: 5.010417 | D37: 4.145833 | E37: 4.791667 | F37: 4.791667 | G37: 31806000 | H37: 1998-01-12 | I37: 4.791667
A38: 1998-01-19 | B38: 4.822917 | C38: 5.34375 | D38: 4.8125 | E38: 4.9375 | F38: 4.9375 | G38: 32796000 | H38: 1998-01-19 | I38: 4.9375
A39: 1998-01-26 | B39: 4.979167 | C39: 5.0625 | D39: 4.625 | E39: 4.916667 | F39: 4.916667 | G39: 22668000 | H39: 1998-01-26 | I39: 4.916667
A40: 1998-02-02 | B40: 4.947917 | C40: 5.25 | D40: 4.875 | E40: 4.90625 | F40: 4.90625 | G40: 20532000 | H40: 1998-02-02 | I40: 4.90625
A41: 1998-02-09 | B41: 4.916667 | C41: 5.463542 | D41: 4.770833 | E41: 5.1875 | F41: 5.1875 | G41: 32853600 | H41: 1998-02-09 | I41: 5.1875
A42: 1998-02-16 | B42: 5.21875 | C42: 5.291667 | D42: 5.052083 | E42: 5.270833 | F42: 5.270833 | G42: 12487200 | H42: 1998-02-16 | I42: 5.270833
A43: 1998-02-23 | B43: 5.291667 | C43: 6.635417 | D43: 5.208333 | E43: 6.416667 | F43: 6.416667 | G43: 64748400 | H43: 1998-02-23 | I43: 6.416667
A44: 1998-03-02 | B44: 6.322917 | C44: 6.515625 | D44: 5.833333 | E44: 6.395833 | F44: 6.395833 | G44: 44175600 | H44: 1998-03-02 | I44: 6.395833
A45: 1998-03-09 | B45: 6.40625 | C45: 7.354167 | D45: 6.395833 | E45: 6.557292 | F45: 6.557292 | G45: 76477200 | H45: 1998-03-09 | I45: 6.557292
A46: 1998-03-16 | B46: 6.630208 | C46: 7.291667 | D46: 6.489583 | E46: 7 | F46: 7 | G46: 38600400 | H46: 1998-03-16 | I46: 7
A47: 1998-03-23 | B47: 6.963542 | C47: 7.260417 | D47: 6.625 | E47: 7.083333 | F47: 7.083333 | G47: 35499600 | H47: 1998-03-23 | I47: 7.083333
A48: 1998-03-30 | B48: 7.15625 | C48: 8.0625 | D48: 6.979167 | E48: 7.75 | F48: 7.75 | G48: 54854400 | H48: 1998-03-30 | I48: 7.75
A49: 1998-04-06 | B49: 7.854167 | C49: 8 | D49: 7.0625 | E49: 7.9375 | F49: 7.9375 | G49: 50007600 | H49: 1998-04-06 | I49: 7.9375
A50: 1998-04-13 | B50: 7.90625 | C50: 8.333333 | D50: 7.666667 | E50: 7.90625 | F50: 7.90625 | G50: 61776000 | H50: 1998-04-13 | I50: 7.90625
A51: 1998-04-20 | B51: 7.947917 | C51: 8.291667 | D51: 6.708333 | E51: 7.072917 | F51: 7.072917 | G51: 57674400 | H51: 1998-04-20 | I51: 7.072917
A52: 1998-04-27 | B52: 6.947917 | C52: 8.291667 | D52: 6.427083 | E52: 7.875 | F52: 7.875 | G52: 151929600 | H52: 1998-04-27 | I52: 7.875
A53: 1998-05-04 | B53: 7.916667 | C53: 7.989583 | D53: 7.354167 | E53: 7.697917 | F53: 7.697917 | G53: 39853200 | H53: 1998-05-04 | I53: 7.697917
A54: 1998-05-11 | B54: 7.744792 | C54: 7.885417 | D54: 7.208333 | E54: 7.46875 | F54: 7.46875 | G54: 50181600 | H54: 1998-05-11 | I54: 7.46875
A55: 1998-05-18 | B55: 7.5 | C55: 7.625 | D55: 7.125 | E55: 7.166667 | F55: 7.166667 | G55: 23355600 | H55: 1998-05-18 | I55: 7.166667
A56: 1998-05-25 | B56: 7.171875 | C56: 7.416667 | D56: 6.645833 | E56: 7.34375 | F56: 7.34375 | G56: 52172400 | H56: 1998-05-25 | I56: 7.34375
A57: 1998-06-01 | B57: 7.333333 | C57: 7.541667 | D57: 6.875 | E57: 7.375 | F57: 7.375 | G57: 31249200 | H57: 1998-06-01 | I57: 7.375
A58: 1998-06-08 | B58: 7.302083 | C58: 10.583333 | D58: 7.25 | E58: 10.166667 | F58: 10.166667 | G58: 106691400 | H58: 1998-06-08 | I58: 10.166667
A59: 1998-06-15 | B59: 9.916667 | C59: 13.75 | D59: 9.854167 | E59: 12.635417 | F59: 12.635417 | G59: 181452600 | H59: 1998-06-15 | I59: 12.635417
A60: 1998-06-22 | B60: 12.458333 | C60: 17.458334 | D60: 12.041667 | E60: 15.708333 | F60: 15.708333 | G60: 218100600 | H60: 1998-06-22 | I60: 15.708333
A61: 1998-06-29 | B61: 15.791667 | C61: 20.916666 | D61: 15.791667 | E61: 20.666666 | F61: 20.666666 | G61: 126919200 | H61: 1998-06-29 | I61: 20.666666
A62: 1998-07-06 | B62: 21.229166 | C62: 23.958334 | D62: 16.354166 | E62: 16.583334 | F62: 16.583334 | G62: 206922000 | H62: 1998-07-06 | I62: 16.583334
A63: 1998-07-13 | B63: 16.083334 | C63: 20.083334 | D63: 15.708333 | E63: 19.96875 | F63: 19.96875 | G63: 94041600 | H63: 1998-07-13 | I63: 19.96875
A64: 1998-07-20 | B64: 20.1875 | C64: 24.5 | D64: 19.5 | E64: 20.708334 | F64: 20.708334 | G64: 168012000 | H64: 1998-07-20 | I64: 20.708334
A65: 1998-07-27 | B65: 19.854166 | C65: 21.229166 | D65: 17.583334 | E65: 18.479166 | F65: 18.479166 | G65: 114436800 | H65: 1998-07-27 | I65: 18.479166
A66: 1998-08-03 | B66: 18.291666 | C66: 19.8125 | D66: 16.666666 | E66: 19.333334 | F66: 19.333334 | G66: 106075200 | H66: 1998-08-03 | I66: 19.333334
A67: 1998-08-10 | B67: 19.5 | C67: 22.5 | D67: 19.166666 | E67: 20.458334 | F67: 20.458334 | G67: 110854800 | H67: =A67 -> 1998-08-10 | I67: =E67 -> 20.458334
A68: 1998-08-17 | B68: 20.125 | C68: 22.291666 | D68: 19.75 | E68: 21.614584 | F68: 21.614584 | G68: 82922400 | H68: 1998-08-17 | I68: 21.614584 | J68: =J$2 -> 
A69: 1998-08-24 | B69: 21.708334 | C69: 22.916666 | D69: 17.208334 | E69: 17.648438 | F69: 17.648438 | G69: 99754800 | H69: 1998-08-24 | I69: 17.648438
A70: 1998-08-31 | B70: 17.572916 | C70: 17.9375 | D70: 10.833333 | E70: 14.375 | F70: 14.375 | G70: 199063200 | H70: 1998-08-31 | I70: 14.375
A71: 1998-09-07 | B71: 15.666667 | C71: 15.791667 | D71: 12.25 | E71: 12.677083 | F71: 12.677083 | G71: 95415000 | H71: 1998-09-07 | I71: 12.677083
A72: 1998-09-14 | B72: 13.395833 | C72: 14.322917 | D72: 11.729167 | E72: 13.28125 | F72: 13.28125 | G72: 130607400 | H72: 1998-09-14 | I72: 13.28125
A73: 1998-09-21 | B73: 12.666667 | C73: 19.479166 | D73: 12.666667 | E73: 18.208334 | F73: 18.208334 | G73: 187379400 | H73: 1998-09-21 | I73: 18.208334
A74: 1998-09-28 | B74: 19.395834 | C74: 20 | D74: 16.666666 | E74: 18.375 | F74: 18.375 | G74: 175258800 | H74: 1998-09-28 | I74: 18.375
A75: 1998-10-05 | B75: 18.145834 | C75: 18.708334 | D75: 13.333333 | E75: 15.197917 | F75: 15.197917 | G75: 146613600 | H75: 1998-10-05 | I75: 15.197917
A76: 1998-10-12 | B76: 16.1875 | C76: 16.989584 | D76: 14.958333 | E76: 16.572916 | F76: 16.572916 | G76: 86469000 | H76: 1998-10-12 | I76: 16.572916
A77: 1998-10-19 | B77: 16.5 | C77: 19.71875 | D77: 16.5 | E77: 19.354166 | F77: 19.354166 | G77: 88786800 | H77: 1998-10-19 | I77: 19.354166
A78: 1998-10-26 | B78: 19.854166 | C78: 21.635416 | D78: 19.041666 | E78: 21.072916 | F78: 21.072916 | G78: 113687400 | H78: 1998-10-26 | I78: 21.072916
A79: 1998-11-02 | B79: 21.354166 | C79: 22.177084 | D79: 20.666666 | E79: 20.760416 | F79: 20.760416 | G79: 103891800 | H79: 1998-11-02 | I79: 20.760416
A80: 1998-11-09 | B80: 20.3125 | C80: 23.333334 | D80: 20.125 | E80: 21.291666 | F80: 21.291666 | G80: 93598200 | H80: 1998-11-09 | I80: 21.291666
A81: 1998-11-16 | B81: 21.416666 | C81: 30.291666 | D81: 20.583334 | E81: 30.104166 | F81: 30.104166 | G81: 237981000 | H81: 1998-11-16 | I81: 30.104166
A82: 1998-11-23 | B82: 31.8125 | C82: 38.854168 | D82: 31.010416 | E82: 36.104168 | F82: 36.104168 | G82: 186566400 | H82: 1998-11-23 | I82: 36.104168
A83: 1998-11-30 | B83: 36.604168 | C83: 36.708332 | D83: 30.333334 | E83: 31.416666 | F83: 31.416666 | G83: 150649800 | H83: 1998-11-30 | I83: 31.416666
A84: 1998-12-07 | B84: 32.166668 | C84: 37.385418 | D84: 30.854166 | E84: 37.166668 | F84: 37.166668 | G84: 143659800 | H84: 1998-12-07 | I84: 37.166668
A85: 1998-12-14 | B85: 36.854168 | C85: 50.291668 | D85: 36.333332 | E85: 47.78125 | F85: 47.78125 | G85: 269150400 | H85: 1998-12-14 | I85: 47.78125
A86: 1998-12-21 | B86: 50.583332 | C86: 55 | D86: 50 | E86: 54.135418 | F86: 54.135418 | G86: 85122000 | H86: 1998-12-21 | I86: 54.135418
A87: 1998-12-28 | B87: 55.166668 | C87: 60.3125 | D87: 50.645832 | E87: 53.541668 | F87: 53.541668 | G87: 105388200 | H87: 1998-12-28 | I87: 53.541668
A88: 1999-01-04 | B88: 54.614582 | C88: 99.5625 | D88: 53.25 | E88: 80.125 | F88: 80.125 | G88: 252278800 | H88: 1999-01-04 | I88: 80.125
A89: 1999-01-11 | B89: 92 | C89: 92.5 | D89: 62.5 | E89: 70.1875 | F89: 70.1875 | G89: 134287600 | H89: 1999-01-11 | I89: 70.1875
A90: 1999-01-18 | B90: 75.25 | C90: 75.25 | D90: 46.28125 | E90: 61.5 | F90: 61.5 | G90: 132754600 | H90: 1999-01-18 | I90: 61.5
A91: 1999-01-25 | B91: 60.75 | C91: 69.875 | D91: 55 | E91: 58.46875 | F91: 58.46875 | G91: 127027800 | H91: 1999-01-25 | I91: 58.46875
A92: 1999-02-01 | B92: 58.875 | C92: 63.375 | D92: 54.25 | E92: 57.9375 | F92: 57.9375 | G92: 64836200 | H92: 1999-02-01 | I92: 57.9375
A93: 1999-02-08 | B93: 57.1875 | C93: 57.5625 | D93: 47.5 | E93: 52.25 | F93: 52.25 | G93: 60187600 | H93: 1999-02-08 | I93: 52.25
A94: 1999-02-15 | B94: 53.4375 | C94: 54.25 | D94: 42.125 | E94: 50.9375 | F94: 50.9375 | G94: 65929200 | H94: 1999-02-15 | I94: 50.9375
A95: 1999-02-22 | B95: 50.875 | C95: 65 | D95: 49 | E95: 64.0625 | F95: 64.0625 | G95: 127193000 | H95: 1999-02-22 | I95: 64.0625
A96: 1999-03-01 | B96: 63.5 | C96: 68.03125 | D96: 57.9375 | E96: 60.75 | F96: 60.75 | G96: 81564600 | H96: 1999-03-01 | I96: 60.75
A97: 1999-03-08 | B97: 60.71875 | C97: 71.375 | D97: 59.625 | E97: 66.65625 | F97: 66.65625 | G97: 66457000 | H97: 1999-03-08 | I97: 66.65625
A98: 1999-03-15 | B98: 66.5 | C98: 71.53125 | D98: 64.125 | E98: 67.53125 | F98: 67.53125 | G98: 45448000 | H98: 1999-03-15 | I98: 67.53125
A99: 1999-03-22 | B99: 66.59375 | C99: 73.875 | D99: 57 | E99: 69.53125 | F99: 69.53125 | G99: 70380800 | H99: 1999-03-22 | I99: 69.53125
A100: 1999-03-29 | B100: 75 | C100: 90.0625 | D100: 74 | E100: 85.5 | F100: 85.5 | G100: 78732800 | H100: 1999-03-29 | I100: 85.5
A101: 1999-04-05 | B101: 86.3125 | C101: 97.875 | D101: 83 | E101: 91.4375 | F101: 91.4375 | G101: 61942000 | H101: 1999-04-05 | I101: 91.4375
A102: 1999-04-12 | B102: 88.0625 | C102: 96 | D102: 75.5 | E102: 95 | F102: 95 | G102: 74719400 | H102: 1999-04-12 | I102: 95
A103: 1999-04-19 | B103: 94.5 | C103: 108.25 | D103: 76.75 | E103: 105.0625 | F103: 105.0625 | G103: 103711800 | H103: 1999-04-19 | I103: 105.0625
A104: 1999-04-26 | B104: 104.5 | C104: 110.625 | D104: 82.5 | E104: 86.03125 | F104: 86.03125 | G104: 111339000 | H104: 1999-04-26 | I104: 86.03125
A105: 1999-05-03 | B105: 83.4375 | C105: 83.53125 | D105: 65.5 | E105: 68.1875 | F105: 68.1875 | G105: 110531000 | H105: 1999-05-03 | I105: 68.1875
A106: 1999-05-10 | B106: 68.3125 | C106: 76.9375 | D106: 64.90625 | E106: 66.1875 | F106: 66.1875 | G106: 58275800 | H106: 1999-05-10 | I106: 66.1875
A107: 1999-05-17 | B107: 65 | C107: 69.8125 | D107: 60.75 | E107: 64.28125 | F107: 64.28125 | G107: 60784800 | H107: 1999-05-17 | I107: 64.28125
A108: 1999-05-24 | B108: 64.3125 | C108: 64.6875 | D108: 52.25 | E108: 59.375 | F108: 59.375 | G108: 74176200 | H108: 1999-05-24 | I108: 59.375
A109: 1999-05-31 | B109: 55.75 | C109: 57.5 | D109: 48.5625 | E109: 54.21875 | F109: 54.21875 | G109: 93786200 | H109: 1999-05-31 | I109: 54.21875
A110: 1999-06-07 | B110: 54.28125 | C110: 60.6875 | D110: 52.375 | E110: 52.90625 | F110: 52.90625 | G110: 66247200 | H110: 1999-06-07 | I110: 52.90625
A111: 1999-06-14 | B111: 51.96875 | C111: 59.5625 | D111: 44.875 | E111: 55.65625 | F111: 55.65625 | G111: 87794600 | H111: 1999-06-14 | I111: 55.65625
A112: 1999-06-21 | B112: 56.78125 | C112: 64.75 | D112: 54.0625 | E112: 55.09375 | F112: 55.09375 | G112: 67493400 | H112: 1999-06-21 | I112: 55.09375
A113: 1999-06-28 | B113: 55.5 | C113: 64.625 | D113: 51.21875 | E113: 62.03125 | F113: 62.03125 | G113: 71017200 | H113: 1999-06-28 | I113: 62.03125
A114: 1999-07-05 | B114: 64 | C114: 66.65625 | D114: 60 | E114: 62.75 | F114: 62.75 | G114: 41080400 | H114: 1999-07-05 | I114: 62.75
A115: 1999-07-12 | B115: 62.5 | C115: 71.25 | D115: 57.5 | E115: 68.8125 | F115: 68.8125 | G115: 83570400 | H115: 1999-07-12 | I115: 68.8125
A116: 1999-07-19 | B116: 68 | C116: 68.3125 | D116: 51.59375 | E116: 57.28125 | F116: 57.28125 | G116: 131422400 | H116: 1999-07-19 | I116: 57.28125
A117: 1999-07-26 | B117: 55.21875 | C117: 57.75 | D117: 48.75 | E117: 50.03125 | F117: 50.03125 | G117: 110986000 | H117: 1999-07-26 | I117: 50.03125
A118: 1999-08-02 | B118: 49.1875 | C118: 51.0625 | D118: 41 | E118: 44.78125 | F118: 44.78125 | G118: 127254000 | H118: 1999-08-02 | I118: 44.78125
A119: 1999-08-09 | B119: 45.75 | C119: 48.71875 | D119: 41 | E119: 48.71875 | F119: 48.71875 | G119: 85817000 | H119: 1999-08-09 | I119: 48.71875
A120: 1999-08-16 | B120: 49.125 | C120: 58.75 | D120: 47.75 | E120: 56.71875 | F120: 56.71875 | G120: 97403600 | H120: 1999-08-16 | I120: 56.71875
A121: 1999-08-23 | B121: 57.96875 | C121: 67.78125 | D121: 57.875 | E121: 64.25 | F121: 64.25 | G121: 97324400 | H121: 1999-08-23 | I121: 64.25
A122: 1999-08-30 | B122: 63.78125 | C122: 65 | D122: 56.09375 | E122: 62.4375 | F122: 62.4375 | G122: 106523000 | H122: 1999-08-30 | I122: 62.4375
A123: 1999-09-06 | B123: 63.8125 | C123: 68 | D123: 60.9375 | E123: 66.5 | F123: 66.5 | G123: 37588800 | H123: 1999-09-06 | I123: 66.5
A124: 1999-09-13 | B124: 65.625 | C124: 67.9375 | D124: 62.5 | E124: 63.8125 | F124: 63.8125 | G124: 38646100 | H124: 1999-09-13 | I124: 63.8125
A125: 1999-09-20 | B125: 63.6875 | C125: 68.75 | D125: 60.6875 | E125: 65 | F125: 65 | G125: 49573200 | H125: 1999-09-20 | I125: 65
A126: 1999-09-27 | B126: 66.1875 | C126: 85 | D126: 61.125 | E126: 77.25 | F126: 77.25 | G126: 151002800 | H126: 1999-09-27 | I126: 77.25
A127: 1999-10-04 | B127: 79.4375 | C127: 90 | D127: 74.75 | E127: 89.25 | F127: 89.25 | G127: 77777800 | H127: 1999-10-04 | I127: 89.25
A128: 1999-10-11 | B128: 89.125 | C128: 89.375 | D128: 73.9375 | E128: 75.0625 | F128: 75.0625 | G128: 50385500 | H128: 1999-10-11 | I128: 75.0625
A129: 1999-10-18 | B129: 75.0625 | C129: 83.625 | D129: 71.0625 | E129: 78.625 | F129: 78.625 | G129: 42575100 | H129: 1999-10-18 | I129: 78.625
A130: 1999-10-25 | B130: 79 | C130: 84.3125 | D130: 65.875 | E130: 70.625 | F130: 70.625 | G130: 73142800 | H130: 1999-10-25 | I130: 70.625
A131: 1999-11-01 | B131: 68.0625 | C131: 71.875 | D131: 61 | E131: 64.9375 | F131: 64.9375 | G131: 64690000 | H131: =A131 -> 1999-11-01 | I131: =E131 -> 64.9375 | M131: =M$2 -> 
A132: 1999-11-08 | B132: 64.8125 | C132: 83.0625 | D132: 63.5 | E132: 74.9375 | F132: 74.9375 | G132: 89936700 | H132: 1999-11-08 | I132: 74.9375 | J132: =J$2 -> 
A133: 1999-11-15 | B133: 75.625 | C133: 80 | D133: 73.3125 | E133: 77.9375 | F133: 77.9375 | G133: 39904300 | H133: 1999-11-15 | I133: 77.9375
A134: 1999-11-22 | B134: 77.875 | C134: 95.125 | D134: 76 | E134: 93.125 | F134: 93.125 | G134: 55020000 | H134: 1999-11-22 | I134: 93.125
A135: 1999-11-29 | B135: 95.5 | C135: 96.875 | D135: 81.96875 | E135: 86.5625 | F135: 86.5625 | G135: 62872700 | H135: 1999-11-29 | I135: 86.5625
A136: 1999-12-06 | B136: 86.875 | C136: 113 | D136: 84.375 | E136: 106.6875 | F136: 106.6875 | G136: 85087100 | H136: 1999-12-06 | I136: 106.6875
A137: 1999-12-13 | B137: 106.625 | C137: 106.625 | D137: 91 | E137: 94.0625 | F137: 94.0625 | G137: 41855400 | H137: 1999-12-13 | I137: 94.0625
A138: 1999-12-20 | B138: 97.75 | C138: 102 | D138: 89.0625 | E138: 90 | F138: 90 | G138: 38911700 | H138: 1999-12-20 | I138: 90
A139: 1999-12-27 | B139: 87.75 | C139: 88.25 | D139: 76 | E139: 76.125 | F139: 76.125 | G139: 49268400 | H139: 1999-12-27 | I139: 76.125
A140: 2000-01-03 | B140: 81.5 | C140: 91.5 | D140: 64 | E140: 69.5625 | F140: 69.5625 | G140: 101319800 | H140: 2000-01-03 | I140: 69.5625
A141: 2000-01-10 | B141: 72.5625 | C141: 72.625 | D141: 63 | E141: 64.25 | F141: 64.25 | G141: 53396800 | H141: 2000-01-10 | I141: 64.25
A142: 2000-01-17 | B142: 63.4375 | C142: 67.5 | D142: 60 | E142: 62.0625 | F142: 62.0625 | G142: 31070300 | H142: 2000-01-17 | I142: 62.0625
A143: 2000-01-24 | B143: 67.5625 | C143: 73.375 | D143: 60 | E143: 61.6875 | F143: 61.6875 | G143: 65724200 | H143: 2000-01-24 | I143: 61.6875
A144: 2000-01-31 | B144: 60.375 | C144: 85.9375 | D144: 58.4375 | E144: 78.5625 | F144: 78.5625 | G144: 92901400 | H144: 2000-01-31 | I144: 78.5625
A145: 2000-02-07 | B145: 76.1875 | C145: 84 | D145: 73.125 | E145: 76.1875 | F145: 76.1875 | G145: 57470800 | H145: 2000-02-07 | I145: 76.1875
A146: 2000-02-14 | B146: 75.6875 | C146: 76.1875 | D146: 63.875 | E146: 64.75 | F146: 64.75 | G146: 30710400 | H146: 2000-02-14 | I146: 64.75
A147: 2000-02-21 | B147: 64.9375 | C147: 71.75 | D147: 63.0625 | E147: 69.125 | F147: 69.125 | G147: 24866800 | H147: 2000-02-21 | I147: 69.125
A148: 2000-02-28 | B148: 66.5625 | C148: 68.96875 | D148: 62.0625 | E148: 62.5 | F148: 62.5 | G148: 31822500 | H148: 2000-02-28 | I148: 62.5
A149: 2000-03-06 | B149: 62.875 | C149: 69 | D149: 60.5625 | E149: 66.875 | F149: 66.875 | G149: 29811300 | H149: 2000-03-06 | I149: 66.875
A150: 2000-03-13 | B150: 64 | C150: 66.9375 | D150: 60 | E150: 64.8125 | F150: 64.8125 | G150: 31523900 | H150: 2000-03-13 | I150: 64.8125
A151: 2000-03-20 | B151: 63.5 | C151: 75.25 | D151: 62.25 | E151: 72.6875 | F151: 72.6875 | G151: 49650900 | H151: 2000-03-20 | I151: 72.6875
A152: 2000-03-27 | B152: 72.25 | C152: 75.125 | D152: 63 | E152: 67 | F152: 67 | G152: 25982200 | H152: 2000-03-27 | I152: 67
A153: 2000-04-03 | B153: 65.4375 | C153: 68.625 | D153: 55.75 | E153: 67.5625 | F153: 67.5625 | G153: 36168400 | H153: 2000-04-03 | I153: 67.5625
A154: 2000-04-10 | B154: 67.25 | C154: 68.4375 | D154: 40.8125 | E154: 46.875 | F154: 46.875 | G154: 48679200 | H154: 2000-04-10 | I154: 46.875
A155: 2000-04-17 | B155: 45.25 | C155: 56.25 | D155: 44.625 | E155: 52.375 | F155: 52.375 | G155: 33215000 | H155: 2000-04-17 | I155: 52.375
A156: 2000-04-24 | B156: 49.375 | C156: 57.4375 | D156: 44.875 | E156: 55.1875 | F156: 55.1875 | G156: 43949900 | H156: 2000-04-24 | I156: 55.1875
A157: 2000-05-01 | B157: 56 | C157: 60.3125 | D157: 53 | E157: 58.5 | F157: 58.5 | G157: 30218500 | H157: 2000-05-01 | I157: 58.5
A158: 2000-05-08 | B158: 56.8125 | C158: 59.25 | D158: 49 | E158: 53.75 | F158: 53.75 | G158: 26763700 | H158: 2000-05-08 | I158: 53.75
A159: 2000-05-15 | B159: 53.625 | C159: 62.375 | D159: 50.875 | E159: 52.625 | F159: 52.625 | G159: 26894100 | H159: 2000-05-15 | I159: 52.625
A160: 2000-05-22 | B160: 53 | C160: 53.125 | D160: 40.4375 | E160: 46.5 | F160: 46.5 | G160: 34317100 | H160: 2000-05-22 | I160: 46.5
A161: 2000-05-29 | B161: 47.3125 | C161: 58.125 | D161: 46.375 | E161: 57.875 | F161: 57.875 | G161: 28439900 | H161: 2000-05-29 | I161: 57.875
A162: 2000-06-05 | B162: 55.03125 | C162: 56.25 | D162: 50.125 | E162: 52.1875 | F162: 52.1875 | G162: 20470100 | H162: 2000-06-05 | I162: 52.1875
A163: 2000-06-12 | B163: 52.1875 | C163: 52.1875 | D163: 45.3125 | E163: 46 | F163: 46 | G163: 20420600 | H163: 2000-06-12 | I163: 46
A164: 2000-06-19 | B164: 45.5 | C164: 48.625 | D164: 32.46875 | E164: 33.875 | F164: 33.875 | G164: 77278200 | H164: 2000-06-19 | I164: 33.875
A165: 2000-06-26 | B165: 35.3125 | C165: 39.9375 | D165: 32.8125 | E165: 36.3125 | F165: 36.3125 | G165: 69027300 | H165: 2000-06-26 | I165: 36.3125
A166: 2000-07-03 | B166: 36.6875 | C166: 38.5 | D166: 34.75 | E166: 36.125 | F166: 36.125 | G166: 16613700 | H166: 2000-07-03 | I166: 36.125
A167: 2000-07-10 | B167: 36.375 | C167: 43.203125 | D167: 32.625 | E167: 42.625 | F167: 42.625 | G167: 56436600 | H167: 2000-07-10 | I167: 42.625
A168: 2000-07-17 | B168: 42.875 | C168: 43.9375 | D168: 39 | E168: 41.125 | F168: 41.125 | G168: 30890700 | H168: 2000-07-17 | I168: 41.125
A169: 2000-07-24 | B169: 41.0625 | C169: 41.375 | D169: 29 | E169: 30 | F169: 30 | G169: 85104800 | H169: 2000-07-24 | I169: 30
A170: 2000-07-31 | B170: 30.0625 | C170: 34.1875 | D170: 27.875 | E170: 32.5 | F170: 32.5 | G170: 32603300 | H170: 2000-07-31 | I170: 32.5
A171: 2000-08-07 | B171: 32 | C171: 34.25 | D171: 29.75 | E171: 33.6875 | F171: 33.6875 | G171: 33517300 | H171: 2000-08-07 | I171: 33.6875
A172: 2000-08-14 | B172: 33.5 | C172: 40.125 | D172: 32.6875 | E172: 39 | F172: 39 | G172: 36892800 | H172: 2000-08-14 | I172: 39
A173: 2000-08-21 | B173: 39.09375 | C173: 40.5 | D173: 35 | E173: 39.9375 | F173: 39.9375 | G173: 19694600 | H173: 2000-08-21 | I173: 39.9375
A174: 2000-08-28 | B174: 38.8125 | C174: 43.96875 | D174: 38.5625 | E174: 41.5 | F174: 41.5 | G174: 34582600 | H174: 2000-08-28 | I174: 41.5
A175: 2000-09-04 | B175: 40.9375 | C175: 49.625 | D175: 40.25 | E175: 42.9375 | F175: 42.9375 | G175: 36926500 | H175: 2000-09-04 | I175: 42.9375
A176: 2000-09-11 | B176: 42.625 | C176: 46 | D176: 41 | E176: 43.625 | F176: 43.625 | G176: 26497300 | H176: 2000-09-11 | I176: 43.625
A177: 2000-09-18 | B177: 43.5 | C177: 44.625 | D177: 37.25 | E177: 41.4375 | F177: 41.4375 | G177: 34842600 | H177: 2000-09-18 | I177: 41.4375
A178: 2000-09-25 | B178: 41.21875 | C178: 42.5625 | D178: 35.5 | E178: 38.4375 | F178: 38.4375 | G178: 32126200 | H178: 2000-09-25 | I178: 38.4375
A179: 2000-10-02 | B179: 38.1875 | C179: 38.4375 | D179: 30.1875 | E179: 31.5625 | F179: 31.5625 | G179: 34536100 | H179: 2000-10-02 | I179: 31.5625
A180: 2000-10-09 | B180: 30.25 | C180: 32.71875 | D180: 23.5 | E180: 28.4375 | F180: 28.4375 | G180: 43548700 | H180: 2000-10-09 | I180: 28.4375
A181: 2000-10-16 | B181: 28.125 | C181: 31.25 | D181: 19.375 | E181: 30.8125 | F181: 30.8125 | G181: 63573700 | H181: 2000-10-16 | I181: 30.8125
A182: 2000-10-23 | B182: 29.6875 | C182: 37.5 | D182: 27.625 | E182: 35.625 | F182: 35.625 | G182: 82645300 | H182: 2000-10-23 | I182: 35.625
A183: 2000-10-30 | B183: 33.0625 | C183: 40.875 | D183: 30.265625 | E183: 37.5625 | F183: 37.5625 | G183: 46481000 | H183: 2000-10-30 | I183: 37.5625
A184: 2000-11-06 | B184: 38.5625 | C184: 39.4375 | D184: 29.875 | E184: 30.0625 | F184: 30.0625 | G184: 30200400 | H184: 2000-11-06 | I184: 30.0625
A185: 2000-11-13 | B185: 28.8125 | C185: 30.8125 | D185: 25.75 | E185: 27.4375 | F185: 27.4375 | G185: 30609400 | H185: 2000-11-13 | I185: 27.4375
A186: 2000-11-20 | B186: 26 | C186: 29.125 | D186: 22.125 | E186: 28.9375 | F186: 28.9375 | G186: 32152200 | H186: 2000-11-20 | I186: 28.9375
A187: 2000-11-27 | B187: 29.75 | C187: 30.75 | D187: 22.875 | E187: 24.625 | F187: 24.625 | G187: 50083000 | H187: 2000-11-27 | I187: 24.625
A188: 2000-12-04 | B188: 25.1875 | C188: 27.625 | D188: 20.125 | E188: 23.4375 | F188: 23.4375 | G188: 50668500 | H188: 2000-12-04 | I188: 23.4375
A189: 2000-12-11 | B189: 22.875 | C189: 27.5 | D189: 21.75 | E189: 22.875 | F189: 22.875 | G189: 40227300 | H189: 2000-12-11 | I189: 22.875
A190: 2000-12-18 | B190: 20.75 | C190: 21.1875 | D190: 14.875 | E190: 15.5625 | F190: 15.5625 | G190: 69542800 | H190: 2000-12-18 | I190: 15.5625
A191: 2000-12-25 | B191: 16.3125 | C191: 18.5 | D191: 15 | E191: 15.5625 | F191: 15.5625 | G191: 33916900 | H191: 2000-12-25 | I191: 15.5625
A192: 2001-01-01 | B192: 15.8125 | C192: 17.875 | D192: 13.5625 | E192: 14.5625 | F192: 14.5625 | G192: 43303200 | H192: 2001-01-01 | I192: 14.5625
A193: 2001-01-08 | B193: 14.4375 | C193: 18.5 | D193: 13.75 | E193: 17.6875 | F193: 17.6875 | G193: 66093200 | H193: 2001-01-08 | I193: 17.6875
A194: 2001-01-15 | B194: 18.3125 | C194: 20.375 | D194: 17.25 | E194: 19.9375 | F194: 19.9375 | G194: 25476300 | H194: 2001-01-15 | I194: 19.9375
A195: 2001-01-22 | B195: 19.5 | C195: 22.375 | D195: 18.25 | E195: 19.5 | F195: 19.5 | G195: 35152000 | H195: =A195 -> 2001-01-22 | I195: =E195 -> 19.5
A196: 2001-01-29 | B196: 19.125 | C196: 20.75 | D196: 14.25 | E196: 14.375 | F196: 14.375 | G196: 62031900 | H196: 2001-01-29 | I196: 14.375 | J196: =J$2 -> 
A197: 2001-02-05 | B197: 14.625 | C197: 15.875 | D197: 13.375 | E197: 13.375 | F197: 13.375 | G197: 48582800 | H197: 2001-02-05 | I197: 13.375
A198: 2001-02-12 | B198: 14.125 | C198: 15.0625 | D198: 13.3125 | E198: 13.6875 | F198: 13.6875 | G198: 41089200 | H198: 2001-02-12 | I198: 13.6875
A199: 2001-02-19 | B199: 13.625 | C199: 13.6875 | D199: 11.0625 | E199: 11.8125 | F199: 11.8125 | G199: 27540800 | H199: 2001-02-19 | I199: 11.8125
A200: 2001-02-26 | B200: 12.0625 | C200: 12.25 | D200: 9.59375 | E200: 10 | F200: 10 | G200: 47133800 | H200: 2001-02-26 | I200: 10
... 1000 more rows
